{"text_format":"1","workbook":"xlsx","n_sheets":21,"sheets":["Cover Page","Contents","Facility Info","Operational Data","Operational Summary","Perf. Form 1","Energy Form 1","Permit Compliance","Improvements","Public Liasion","Residue Quality ","Water","Air (periodic)","Air (CEMS)","HCl","SO2","NOx","TOC","Particulates","CO 95% 10 min","NH3"],"not_rendered":{"charts":7,"images":2,"macros":1,"external_links":0,"defined_names":21,"comments":0,"pivot_tables":0},"unopened":[],"bounds":{"document_bytes":16777216,"sheet_cells":100000,"rows_first":2000,"rows_last":500,"rows_between":2000,"halvings":0,"cell_chars":16384,"cell_head_chars":4096},"cells_cut":0,"cells_raw":0,"read":"whole","date_system":"1900"}

{"sheet":"Cover Page","index":0,"n_rows":53,"n_cols":14,"rows_kept":53,"cut":false,"hidden":false,"merged":[[13,13,18,15],[34,1,34,8],[0,3,5,6],[7,1,23,8],[28,1,28,8],[30,1,30,8],[32,1,32,8],[48,2,48,3],[48,6,48,8],[52,2,52,3],[36,1,36,8],[40,2,40,8],[42,2,42,4],[44,2,44,4],[46,2,46,3],[46,6,46,8]]}
[null,null,null,"Add company logo"]
[null,null,null,null,null,null,null,null,null,null,null,null,null,"Version 20.5 "]
[]
[]
[]
[]
[]
[null,"Add photo"]
[]
[]
[]
[]
[null,null,null,null,null,null,null,null,null,null,null,null,null,"Notes:"]
[null,null,null,null,null,null,null,null,null,null,null,null,null,"This template may require adjustments by individual operators to meet specific reporting requirements as defined in the site Permit(s)"]
[]
[]
[]
[]
[]
[]
[]
[]
[]
[]
[]
[]
[]
[]
[null,"Annual Performance Report 2020"]
[]
[null,"Permit EPR/NP3738SY"]
[]
[null,"South East London Combined Heat and Power (SELCHP)"]
[]
[]
[]
[null,"Veolia SELCHP Ltd"]
[]
[null,"Year:",2020]
[]
[null,"Address:","The Kennels Site, Landmann Way, Lewisham"]
[]
[null,"Tel: ","02035676100"]
[]
[null,"Email: ","enquiries@selchp.com"]
[]
[null,"Prepared by:","Lewis Smith",null,null,"Position:","Environmental (ERF) Engineer"]
[]
[null,"Approved by:","Thomas Folliard",null,null,"Position:","General Manager"]
[]
[null,"Version:",1]
[]
[null,"Issue Date:","2021-01-25"]

{"sheet":"Contents","index":1,"n_rows":44,"n_cols":11,"rows_kept":44,"cut":false,"hidden":false,"merged":[[4,10,7,14],[8,1,8,6],[3,1,3,6],[4,1,4,6],[5,1,5,6],[6,1,6,6],[7,1,7,6],[20,1,20,6],[9,1,9,6],[10,1,10,6],[11,1,11,6],[12,1,12,6],[13,1,13,6],[14,1,14,6],[15,1,15,6],[16,1,16,6],[17,1,17,6],[18,1,18,6],[19,1,19,6],[35,1,35,6],[21,1,21,6],[22,1,22,6],[23,1,23,6],[26,1,26,6],[27,1,27,6],[28,1,28,6],[29,1,29,6],[30,1,30,6],[31,1,31,6],[34,1,34,6],[43,0,46,9],[36,1,36,6],[37,1,37,6],[38,1,38,6],[39,1,39,6],[40,1,40,6],[41,1,41,6]]}
[{"$f":"+'Cover Page'!$B$29","v":"Annual Performance Report 2020"},null,null,null,{"$f":"+'Cover Page'!$B$33","v":"South East London Combined Heat and Power (SELCHP)"}]
[]
["Contents",null,null,null,null,null,null,null,null,null,"Notes:"]
["Section","Subject",null,null,null,null,null,"Page ",null,null,"Section references and Page nos. to be inserted"]
[null,"Facility Information",null,null,null,null,null,null,null,null,"Sections and Subjects may require adjustment by individual operators to meet specific reporting requirements as defined in the sites Permit(s)"]
[null,"Operational Summary"]
[null,"Operational Data"]
[null,"Performance Form 1"]
[null,"Energy Form 1"]
[null,"Permit Compliance"]
[null,"Improvements"]
[null,"Public Liaison"]
[null,"Residue Quality - Optional"]
[null,"Emissions to Water"]
[null,"Emissions to Air (periodically monitored)"]
[null,"Emissions to Air (continuously monitored)"]
[null,"Hydrogen Chloride emissions"]
[null,"Sulphur Dioxide emsissions"]
[null,"Oxides of Nitrogen emissions"]
[null,"Total Organic Carbon emissions"]
[null,"Particulate Matter emissions"]
[null,"Carbon Monoxide emissions"]
[null,"Ammonia emissions"]
[]
[]
["Version Control"]
["Section","Information",null,null,null,null,null,"Date"]
[]
[]
[]
[]
[]
[]
["Distribution"]
["Copy","Name, Role",null,null,null,null,null,"No."]
[]
[]
[]
[]
[]
[]
[]
[]
["This report is required under the Industrial Emissions Directive’s Article 55(2) requirements on reporting and public information on waste incineration plants and co-incineration plants, which require the operator to produce an annual report on the functioning and monitoring of the plant and make it available to the public. "]

{"sheet":"Facility Info","index":2,"n_rows":22,"n_cols":11,"rows_kept":22,"cut":false,"hidden":false,"merged":[[4,0,17,8],[21,0,53,8],[4,10,13,13],[21,10,30,13],[0,4,1,8]]}
[{"$f":"+'Cover Page'!$B$29","v":"Annual Performance Report 2020"},null,null,null,{"$f":"+'Cover Page'!$B$33","v":"South East London Combined Heat and Power (SELCHP)"}]
[]
["Plant Description and Design",null,null,null,null,null,null,null,null,null,"Notes:"]
[]
["In 1986, faced with the increasing scarcity and environmental problems of landfill, the London Boroughs of Lewisham, Southwark and Greenwich came together to search for a realistic alternative. In 1988, they formed a Consortium - South East London Combined Heat and Power - from which SELCHP, Energy Recovery Facility (ERF), now takes its name. The facility recovers heat energy from the combustion of non-hazardous waste to raise steam, to generate electricity from a steam turbine which is then exported to the National Grid. Residual steam from the process is used to heat a district heating network, which supplies heat for domestic heating and hot water to local residents. Strict environmental controls and proven operating experience ensure that SELCHP remains consistently compliant with environmental permitting regulations.                                                                                                                                                                                                                                                         \n                                                                                                                                                                                                                                                                                                                                                                                                Technical details of the plant:\nTwo boilers supply steam to one common turbine\nMaximum Permitted Refuse throughput – 464,000 tonnes per annum (29 tonnes per hour per boiler)\nNumber of tipping bays – 11\nSteam output – 38 tonnes of steam per hour at 395°C and 46 bar\nFlue gas treatment – Selective Non-Catalytic Reduction (SNCR) DeNOx, activated carbon injection, semi-wet lime scrubber and high performance bag filters system, discharging into a 100 metre high chimney\nElectrical Generation Capacity – 35MWe and a District Heating potential capacity of 40MWth",null,null,null,null,null,null,null,null,null,"Include summary of plant design, design capacity, no. of combustion lines, electrical and heat capacity and any other general information that describes the facility, its location and purpose "]
[]
[]
[]
[]
[]
[]
[]
[]
[]
[]
[]
[]
[]
[]
["Summary of Operational Processes and Procedures"]
[]
["The main purpose of the activity at SELCHP is to burn non-hazardous municipal waste and to recover energy in the form of steam for both; the export of heat via a district heating network and as electricity for export to the national grid. \nSELCHP is a consortium of Local Authorities and private enterprise that operates a 464,000 tonne per year, mass burn, municipal waste incinerator in Deptford in the London Borough of Lewisham.\nWaste is delivered both; directly to site by refuse collection vehicles and various other waste vehicles. Waste delivered to site is discharged into the waste storage bunker. Oversized and unsuitable wastes are rejected and removed. The waste is then charged into one of two furnaces by dedicated grab cranes. Hydraulic ram feeders control the charging rate of the waste to the furnace grate. Waste is burnt on a reverse acting stoker grate with combustion air supplied in a controlled manner to ensure efficient combustion. The production on Oxides of Nitrogen (NOx) by combustion is mitigated by the injection of ammonia solution into the furnace by a process of Selective Non-Catalytic Reduction (SNCR). Bottom ash from the grate is quenched in a water bath to prevent the release of dust and provide a gas seal, at the ash discharger outlet. Ferrous metal is recovered from the ash by a drum magnet. Residual ash is recovered and sent to a recycling facility in Greenwich, London.\nThe hot gases from the combustion process are passed through a boiler to raise steam, which is then forwarded to a steam turbine to generate up to 32 MW of electricity for export to the national grid. Excess steam, of too low an enthalpy to generate electricity, is taken off the turbine, allowing for the export of heat via the District Heating network to local residents. This heat would otherwise be lost to atmosphere,as waste heat, via the Air Cooled Condenser (ACC).\nExhaust gasses from the boiler are sent to the flue gas treatment plant. Firstly activated carbon is injected to adsorb mercury, heavy metals, dioxins and dioxin like compounds. Secondly, a semi-dry lime scrubbing plant removes acid gasses, predominantly hydrogen chloride (HCl) and sulphur dioxide (SO2). Lastly, the flue gases pass through a series of bad filters to control particulate emissions. The cleaned gasses are discharged from a 100 meter, twin flue (one for each furnace) chimney.     \nSELCHP operates an Environmental Management system accredited to ISO 14001.\nThere are no European sites within 10 km. Air dispersion modeling has established that the site has minimal impact on sites of special scientific interest (SSSI) within that radius. All emissions from the plant have been modelled, demonstrating that it is unlikely to have a significant impact on local air quality, due to it urban setting. \nThere are no releases to controlled waters as part of the process. Process effluents are reused within the process. Residual effluents are released to sewer as trade effluent.\nA Household, commercial and industrial waste transfer station may also be operated within the permit boundary, under conditions set out in ‘Standard Rules Permit SR2008No1’ when required.\n",null,null,null,null,null,null,null,null,null,"Include summary of key processes and procedures such as (but not limited to); waste reception, control rooms, grate, bed and boiler, energy & heat  generation, cooling systems, residue management, emission controls, health and safety systems, maintenance"]

{"sheet":"Operational Data","index":3,"n_rows":63,"n_cols":11,"rows_kept":63,"cut":false,"hidden":false,"merged":[[50,0,54,0],[0,4,1,7],[5,10,6,10],[7,10,18,10],[33,1,36,1],[30,2,30,5],[30,6,30,7],[3,1,3,2],[7,1,19,1],[23,1,26,1],[28,1,29,1]]}
[{"$f":"+'Cover Page'!$B$29","v":"Annual Performance Report 2020"},null,null,null,{"$f":"+'Cover Page'!$B$33","v":"South East London Combined Heat and Power (SELCHP)"}]
[]
["Operational Data",null,null,null,null,null,null,null,null,null,"Notes:"]
["Plant Size",464000,null,"tonnes pa",30,"MWth",35,"MWe",null,null,"* - RDF to include SRF "]
["No. of combustion lines",2,null,"No. of Turbines:",null,1,null,null,null,null,"** - CHP plants only"]
[null,null,null,null,null,null,null,null,null,null,"2020 updates include;  heat in MWh, water in Litres, NCV in MJ/kg"]
["Waste types received","Unit","Q1","Q2","Q3","Q4","Year Total","%"]
["Household / Local Authority","tonnes",93669.89,93692.46,63367,97396,{"$f":"SUM(C8:F8)","v":348125.35},{"$f":"IF(G8>0,G8/$G$18,\"-\")","v":0.94284612682721358},null,null,"Availability Definition: 'the availability of a line is to be calculated by the number of hours the line reported Continuously Monitored emission levels to the Regulator through the calendar year divided by the total number of hours in that year. \nThe overall plant availability is calculated as the Mean of all lines in the plant. For clarity this includes periods of Other Than Normal Operating Conditions (OTNOC) and abnormal operation.'  \n\nRationale: The primary function of an Energy from Waste facility is the disposal of waste. It follows therefore that the availability of a plant is determined by the period of time a facility spends undertaking this activity."]
["Commercial & Industrial ",null,510.32,7255.98,949,2132,{"$f":"SUM(C9:F9)","v":10847.3},2.9378310977734988E-2]
["Hazardous ",null,0,0,0,0,0,"-"]
["Clinical",null,26.3,23.36,0,28.34,78,2.112514871224479E-4]
["Waste wood (biomass) ",null,0,0,0,0,0,"-"]
["Refuse Derived Fuel * - H'hold/LA",null,454,6819.08,843.62,2060.8200000000002,{"$f":"SUM(C13:F13)","v":10177.52},2.7564310707928922E-2]
["Refuse Derived Fuel *  - C&I",null,0,0,0,0,0,"-"]
["Other [Please specify]",null,null,null,null,null,0,"-"]
["Other [Please specify]"]
["Other [Please specify]"]
["Total waste received",null,{"$f":"SUM(C8:C17)","v":94660.510000000009},{"$f":"SUM(D8:D17)","v":107790.88},{"$f":"SUM(E8:E17)","v":65159.62},{"$f":"SUM(F8:F17)","v":101617.16},{"$f":"SUM(G8:G17)","v":369228.17},1]
["Rejected Waste ",null,0,0,10.66,0,{"$f":"SUM(C19:F19)","v":10.66},{"$f":"IF(G19>0,G19/$G$18,\"-\")","v":2.8871036573401214E-5}]
["Unprocessed waste transferred out",null,0,0,0,0,{"$f":"SUM(C20:F20)","v":0},{"$f":"IF(G20>0,G20/$G$18,\"-\")","v":"-"}]
["Total waste combusted",null,{"$f":"C18-SUM(C19:C20)","v":94660.510000000009},{"$f":"D18-SUM(D19:D20)","v":107790.88},65148.959999999999,101617.16,{"$f":"SUM(C21:F21)","v":369217.51},{"$f":"IF(G21>0,G21/$G$18,\"-\")","v":0.99997112896342666}]
[]
["Energy Usage / Export","Unit","Q1","Q2","Q3","Q4","Year Total","KWh/te"]
["Power Generated","MWh",62848.75,70326.399999999994,37096.129999999997,70503,{"$f":"SUM(C24:F24)","v":240774.28},{"$f":"IF(G24>0,G24*1000/$G$21,\"-\")","v":652.12042624955677}]
["Power Exported",null,55643.8,60285.45,32585.86,62876.03,{"$f":"SUM(C25:F25)","v":211391.13999999998},{"$f":"IF(G25>0,G25*1000/$G$21,\"-\")","v":572.53823091976312}]
["Power Used on site",null,7204.95,10040.950000000001,4510.2700000000004,7626.97,{"$f":"SUM(C26:F26)","v":29383.140000000003},{"$f":"IF(G26>0,G26*1000/$G$21,\"-\")","v":79.582195329793549}]
["Power Imported",null,116.6,0,1384.59,0,1501.1899999999998,{"$f":"IF(G27>0,G27*1000/$G$21,\"-\")","v":4.0658689237138281}]
["Parasitic Load","%",{"$f":"IF(C24>0,1-C25/(C24+C27),\"-\")","v":0.11627903283313756},{"$f":"IF(D24>0,1-D25/(D24+D27),\"-\")","v":0.14277639691495647},{"$f":"IF(E24>0,1-E25/(E24+E27),\"-\")","v":0.15318996110259875},{"$f":"IF(F24>0,1-F25/(F24+F27),\"-\")","v":0.10817936825383323},{"$f":"IF(G24>0,1-G25/(G24+G27),\"-\")","v":0.12747609157460316}]
["Thermal Energy Produced **","MWh",3130349,333444,224964,342806,{"$f":"SUM(C29:F29)","v":4031563},{"$f":"IF(G29>0,G29*1000/$G$21,\"-\")","v":10919.208571662812}]
["Thermal Energy Exported **",null,13686.13,9055.77,3513.77,13931.14,40186.81,{"$f":"IF(G30>0,G30*1000/$G$21,\"-\")","v":108.8431856874827}]
["R1 value",null,0.7,null,null,null,"Design / Operational / n/a"]
[]
["Waste Disposal & Recovery","Unit","Q1","Q2","Q3","Q4","Year Total","% inputs"]
["APC Residues - produced","tonnes",2823.68,3120.2,1914.18,3070.92,{"$f":"SUM(C34:F34)","v":10928.98},{"$f":"IF(G34>0,G34/$G$18,\"-\")","v":2.9599529201685775E-2}]
["IBA - produced",null,19942.439999999999,23298.34,14359.22,23097.68,80697.679999999993,{"$f":"IF(G35>0,G35/$G$18,\"-\")","v":0.2185577552221977}]
["Metals recycling",null,1075,2367.3000000000002,1818.5,1344.44,{"$f":"SUM(C36:F36)","v":6605.24},{"$f":"IF(G36>0,G36/$G$18,\"-\")","v":1.7889317600008687E-2}]
["Other",null,0,0,0,0,{"$f":"SUM(C37:F37)","v":0},{"$f":"IF(G37>0,G37/$G$18,\"-\")","v":"-"}]
[]
["Raw Material Usage","Unit","Q1","Q2","Q3","Q4","Year Total","kg or Ltr /te"]
["Mains Water","ltrs",31682,64708.05,54447.95,43108.7,{"$f":"SUM(C40:F40)","v":193946.7},{"$f":"IF(G40>0,G40/$G$18,\"-\")","v":0.52527601022424708}]
["Other Water","ltrs",0,0,0,0,0,{"$f":"IF(G41>0,G41/$G$18,\"-\")","v":"-"}]
["Ammonia","kgs",381020,372738,220884,323579,1298221,{"$f":"IF(G42>0,G42/$G$18,\"-\")","v":3.5160399597896337}]
["Urea",0,0,0,0,0,{"$f":"SUM(C43:F43)","v":0},{"$f":"IF(G43>0,G43/$G$18,\"-\")","v":"-"}]
["Activated Carbon","kgs",43300,26300,15000,22000,106600,{"$f":"IF(G44>0,G44/$G$18,\"-\")","v":0.28871036573401215}]
["Lime / hydrated lime","kgs",818840,1174030,601100,967634,3561604,9.6460787377084483]
["Fuel oil","ltrs",155415,41606,326790,41807,565618,1.5318928672208298]
["Gas","cf",0,0,0,0,0]
["Other",null,0,0,0,0,0]
[]
["Summary ","Line/Unit","Q1","Q2","Q3","Q4","Year Total",null,null,"Hrs in year "]
["Availability of waste combustion by line, hrs",1,1975.97,2163.9499999999998,1462.77,2177.6999999999998,{"$f":"SUM(C51:F51)","v":7780.39},0.88570000000000004,null,8784]
[null,2,1991.03,2107.02,1478.47,2207.0500000000002,7783.5700000000006,0.8861]
[null,null,null,null,null,null,0,"x %"]
[null,null,null,null,null,null,0,"x %"]
[null,null,null,null,null,null,{"$f":"SUM(C55:F55)","v":0},"x %"]
["Overall Availability, mean avg. of all lines, hrs",null,null,null,null,null,{"$f":"AVERAGE(G51:G52)","v":7781.9800000000005},0.88590000000000002]
["Hours of turbine operations, hrs",1,2059.52,2184,1312.12,2208,7763.64,0.88380000000000003]
["Hours of turbine operations, hrs",null,null,null,null,null,0,"x %"]
["Hours of heat / steam export",null,null,null,null,null,0,{"$f":"IF(B59>0,G58/J51,\"n/a\")","v":"n/a"}]
["Net Calorific Value of waste","MJ/kg",9.4179999999999993,9.4003300000000003,9.2859999999999996,9.4589999999999996,{"$f":"AVERAGE(C60:F60)","v":9.3908324999999984},"-"]
["Abnormal Events","qty.",null,2,null,null,2,{"$f":"IF(G61>0,\"yes\",\"no\")","v":"yes"}]
["Abnormal operation","hours",null,4.5,null,null,4.5,{"$f":"+(G62)/J51","v":5.1229508196721314E-4}]
["Permit Breaches","qty.",null,null,2,null,2,{"$f":"IF(G63>0,\"yes\",\"no\")","v":"yes"}]

{"sheet":"Operational Summary","index":4,"n_rows":31,"n_cols":11,"rows_kept":31,"cut":false,"hidden":false,"merged":[[4,0,26,8],[30,0,51,8],[4,10,13,13],[30,10,39,13]]}
[{"$f":"+'Cover Page'!$B$29","v":"Annual Performance Report 2020"},null,null,null,{"$f":"+'Cover Page'!$B$33","v":"South East London Combined Heat and Power (SELCHP)"}]
[]
["Summary of Plant Operations and Maintenance during the reporting year",null,null,null,null,null,null,null,null,null,"Notes:"]
[]
["Overall plant availability for 2020 was 88.9%. Quarter one was troubled by a tranformer fault causing both boilers to trip, the shock of which lead to subsequnt breakdowns and repairs. Quarter 2 was characterised by a signinficant boiler tube leak on line two and the coronavirus pandemic pushing the planned outage back to August/September. Delay of the planned outage contributed to boiler breakdowns, prior to planned works comencing on the 7th and 12th of August for line 1 and line 2 respectively. 2020's annual outage saw the most significanty overhaul to SELCHP's steam turbine, issues while recomissioning the turbine resulted in the outage periode being prolonged. Quater four was largely without incident. Outage highlights: full turbine rotor replacement, boiler one ash discharger replacment and replacement of middle wall top headers on both boilers.  ",null,null,null,null,null,null,null,null,null,"Include summary of key operational and/or maintenance activity undertaken in the year, such as any major component upgrades and/or replacements "]
[]
[]
[]
[]
[]
[]
[]
[]
[]
[]
[]
[]
[]
[]
[]
[]
[]
[]
[]
[]
[]
[]
[]
["Summary of Residue Handling for the reporting year"]
[]
["All incinerator bottom ash is loaded to tipper trucks by excavators and sent for reprocessing at a dedicated and permitted facility in Charlton, London (Recycling code R4). Where the majority of ferrous and non-ferrous metals are extracted for sale to metals traders. Residual aggregates are sold for use in the a range of permissible construction projects. Air pollution control residue, transported as a power and loaded into road tankers, is predominantly sent to Veolia Empire Works, Walsall (99%) for treatment with waste industrial sulphuric/phosphoric acid and disposal to landfill (Disposal code D9). The remainder was sent to a deep storage facility (disposal code D12). Ferrous metal separated from the IBA is sold to and collected by reputable scrap metal traders.  ",null,null,null,null,null,null,null,null,null,"Include in here a summary of residue handling regimes and destinations "]

{"sheet":"Perf. Form 1","index":5,"n_rows":54,"n_cols":10,"rows_kept":54,"cut":false,"hidden":false,"merged":[[9,0,9,9],[10,0,10,1],[10,2,10,3],[10,4,10,5],[10,6,10,7],[10,8,10,9],[2,0,2,4],[2,6,2,8],[3,1,3,4],[5,3,5,4],[5,6,5,7],[8,0,8,1],[8,2,8,3],[8,4,8,5],[8,6,8,7],[8,8,8,9],[11,0,11,1],[11,2,11,3],[11,4,11,5],[11,6,11,7],[11,8,11,9],[12,0,12,1],[12,2,12,3],[12,4,12,5],[12,6,12,7],[12,8,12,9],[15,0,15,1],[15,2,15,3],[15,4,15,5],[15,6,15,7],[15,8,15,9],[16,0,16,9],[13,0,13,1],[13,2,13,3],[13,4,13,5],[13,6,13,7],[13,8,13,9],[14,0,14,3],[14,4,14,5],[14,6,14,7],[14,8,14,9],[17,0,17,1],[17,2,17,3],[17,4,17,5],[17,6,17,7],[17,8,17,9],[18,0,18,1],[18,2,18,3],[18,4,18,5],[18,6,18,7],[18,8,18,9],[19,0,19,1],[19,2,19,3],[19,4,19,5],[19,6,19,7],[19,8,19,9],[20,0,20,1],[20,2,20,3],[20,4,20,5],[20,6,20,7],[20,8,20,9],[21,0,21,1],[21,2,21,3],[21,4,21,5],[21,6,21,7],[21,8,21,9],[22,0,22,3],[22,4,22,5],[22,6,22,7],[22,8,22,9],[31,0,31,3],[31,7,31,8],[32,0,32,3],[32,4,32,5],[32,7,32,8],[33,0,33,3],[33,4,33,5],[33,7,33,8],[23,0,23,3],[23,4,23,5],[23,6,23,7],[23,8,23,9],[25,0,25,9],[26,0,28,9],[36,0,36,3],[36,4,36,5],[36,7,36,8],[37,0,37,3],[37,4,37,5],[37,7,37,8],[34,0,34,3],[34,4,34,5],[34,7,34,8],[35,0,35,3],[35,4,35,5],[35,7,35,8],[47,0,47,1],[49,0,49,9],[50,0,51,9],[38,0,38,9],[39,0,40,9],[43,0,43,1],[43,2,43,9],[45,0,45,1],[46,0,46,1]]}
[{"$f":"+'Cover Page'!C39","v":2020}," Annual Reporting Performance Form 1"]
[]
[{"$f":"+'Cover Page'!B31","v":"Permit EPR/NP3738SY"},null,null,null,null,"Operator: ",{"$f":"'Cover Page'!B37","v":"Veolia SELCHP Ltd"}]
["Facility:",{"$f":"+'Cover Page'!B33:I33","v":"South East London Combined Heat and Power (SELCHP)"},null,null,null,"Form:","Performance 1"]
[]
["Reporting  Period from: ",null,null,"2020-01-01",null,"to:","2020-12-31"]
[]
[{"$f":"+A1","v":2020},"Annual Reporting of Waste Disposal and Recovery"]
["Waste Description",null,"Disposal Route(s)",null,"Disposal Tonnes",null,"Recovery Tonnes",null,"% / tonne of waste incinerated"]
["1) Hazardous Wastes"]
["APC Residues",null,2,null,10928.98,null,0,null,{"$f":"IF((E11+G11)>0,(E11+G11)/'Operational Data'!$G$21, \"-\")","v":2.9600383795448919E-2}]
["IBA",null,0,null,0,null,0,null,{"$f":"IF((E12+G12)>0,(E12+G12)/'Operational Data'!$G$21, \"-\")","v":"-"}]
[null,null,null,null,null,null,null,null,{"$f":"IF((E13+G13)>0,(E13+G13)/'Operational Data'!$G$21, \"-\")","v":"-"}]
[null,null,null,null,null,null,null,null,{"$f":"IF((E14+G14)>0,(E14+G14)/'Operational Data'!$G$21, \"-\")","v":"-"}]
["Total Hazardous Waste",null,null,null,{"$f":"SUM(E11:F14)","v":10928.98},null,{"$f":"SUM(G11:H14)","v":0},null,{"$f":"IF((E15+G15)>0,(E15+G15)/'Operational Data'!$G$21, \"-\")","v":2.9600383795448919E-2}]
[]
["2) Non-Hazardous Wastes"]
["IBA",null,1,null,0,null,80697.679999999993,null,{"$f":"IF((E18+G18)>0,(E18+G18)/'Operational Data'!$G$21, \"-\")","v":0.21856406539332326}]
["Ferrous Metal",null,1,null,0,null,6542.06,null,{"$f":"IF((E19+G19)>0,(E19+G19)/'Operational Data'!$G$21, \"-\")","v":1.7718715453121387E-2}]
["Process Water",null,null,null,null,null,null,null,{"$f":"IF((E20+G20)>0,(E20+G20)/'Operational Data'!$G$21, \"-\")","v":"-"}]
[null,null,null,null,null,null,null,null,{"$f":"IF((E21+G21)>0,(E21+G21)/'Operational Data'!$G$21, \"-\")","v":"-"}]
[null,null,null,null,null,null,null,null,{"$f":"IF((E22+G22)>0,(E22+G22)/'Operational Data'!$G$21, \"-\")","v":"-"}]
["Total Non-Hazardous Waste",null,null,null,{"$f":"SUM(E18:F22)","v":0},null,{"$f":"SUM(G18:H22)","v":87239.739999999991},null,{"$f":"IF((E23+G23)>0,(E23+G23)/'Operational Data'!$G$21, \"-\")","v":0.23628278084644466}]
["TOTAL WASTE",null,null,null,{"$f":"+E23+E15","v":10928.98},null,{"$f":"+G23+G15","v":87239.739999999991},null,{"$f":"IF((E24+G24)>0,(E24+G24)/'Operational Data'!$G$21, \"-\")","v":0.26588316464189354}]
[]
["Operator’s comments :"]
[]
[]
[]
[]
[{"$f":"+A1","v":2020},"Annual Reporting of Water and Other Raw Material Usage"]
["Raw Material",null,null,null,"Usage",null,"Unit","Specific Usage",null,"Unit"]
["Mains Water",null,null,null,{"$f":"+'Operational Data'!G40","v":193946.7},null,"m3",{"$f":"IF(E33>0,E33/'Operational Data'!$G$21,\"-\")","v":0.52529117592499885},null,"m3/te"]
["Total Water",null,null,null,{"$f":"+'Operational Data'!G41+'Operational Data'!G40","v":193946.7},null,"m3",{"$f":"IF(E34>0,E34/'Operational Data'!$G$21,\"-\")","v":0.52529117592499885},null,"m3/te"]
["Urea / Ammonia",null,null,null,{"$f":"+'Operational Data'!G42","v":1298221},null,"kg",{"$f":"IF(E35>0,E35/'Operational Data'!$G$21,\"-\")","v":3.5161414744387391},null,"kg/te"]
["Activated Carbon",null,null,null,{"$f":"+'Operational Data'!G44","v":106600},null,"kg",{"$f":"IF(E36>0,E36/'Operational Data'!$G$21,\"-\")","v":0.28871870134219796},null,"kg/te"]
["Lime / hydrated lime / Sodium Bicarb.",null,null,null,{"$f":"+'Operational Data'!G45","v":3561604},null,"kg",{"$f":"IF(E37>0,E37/'Operational Data'!$G$21,\"-\")","v":9.646357238041066},null,"kg/te"]
[]
["Operator’s comments :"]
[]
[]
[]
[{"$f":"+A31","v":2020},"Annual Reporting of other performance indicators "]
["Parameter",null,"Results by Line"]
[null,null,"A1","A2","A3","A4","A5",null,"Turbine 1","Turbine 2"]
["Operating hours for the year, hours",null,{"$f":"'Operational Data'!G51","v":7780.39},{"$f":"'Operational Data'!G52","v":7783.5700000000006},null,null,null,null,{"$f":"'Operational Data'!G57","v":7763.64}]
["Number of periods of abnormal operation, qty.",null,1,0,null,null,null,null,0]
["Cumulative hours of abnormal operation for this year, hours",null,4,0,null,null,null,null,0]
[]
["Operator’s comments :"]
[]
[]
[]
["Signed: ",null,null,null,null,null,"Date:"]

{"sheet":"Energy Form 1","index":6,"n_rows":29,"n_cols":7,"rows_kept":29,"cut":false,"hidden":false,"merged":[[2,6,2,8],[4,1,4,4],[6,3,6,4],[6,6,6,7],[8,0,8,2],[8,3,8,4],[8,6,8,8],[9,0,9,2],[9,3,9,4],[9,6,9,8],[10,0,10,2],[10,3,10,4],[10,6,10,8],[11,0,11,2],[11,3,11,4],[11,6,11,8],[12,0,12,2],[12,3,12,4],[12,6,12,8],[13,0,13,2],[13,3,13,4],[13,6,13,8],[14,0,14,2],[14,3,14,4],[14,6,14,8],[15,0,15,2],[15,3,15,4],[15,6,15,8],[17,0,17,8],[18,0,24,8]]}
[{"$f":"+'Cover Page'!C39","v":2020}," Annual Reporting of Energy Usage/Export"]
[]
[{"$f":"+'Cover Page'!B31","v":"Permit EPR/NP3738SY"},null,null,null,null,"Operator: ",{"$f":"'Cover Page'!B37","v":"Veolia SELCHP Ltd"}]
[]
["Facility:",{"$f":"+'Cover Page'!B33:I33","v":"South East London Combined Heat and Power (SELCHP)"},null,null,null,"Form:","Energy 1"]
[]
["Reporting  Period from: ",null,null,{"$f":"+'Perf. Form 1'!D6:E6","v":"2020-01-01"},null,"to:",{"$f":"+'Perf. Form 1'!G6:H6","v":"2020-12-31"}]
[]
["Energy Source",null,null,"Energy Usage",null,"Unit","Specific Usage (KWh/tonne incinerated"]
["Electricity Produced",null,null,{"$f":"+'Operational Data'!G24","v":240774.28},null,"MWh",{"$f":"+'Operational Data'!H24","v":652.12042624955677}]
["Electricity Imported   ",null,null,{"$f":"+'Operational Data'!G27","v":1501.1899999999998},null,"MWh",{"$f":"+'Operational Data'!H27","v":4.0658689237138281}]
["Electricity Exported",null,null,{"$f":"+'Operational Data'!G25","v":211391.13999999998},null,"MWh",{"$f":"+'Operational Data'!H25","v":572.53823091976312}]
["Gas Oil",null,null,null,null,"tonnes"]
["Steam/hot water exported",null,null,{"$f":"+'Operational Data'!G30","v":40186.81},null,"GWh",{"$f":"+'Operational Data'!H30","v":108.8431856874827}]
[]
[]
[]
["Operator’s comments :"]
["There are early indications that the turbine overhaul improved overall electrical efficiency of the plant in quarter four."]
[]
[]
[]
[]
[]
[]
[]
[]
[]
["Signed: ",null,null,null,null,null,"Date:"]

{"sheet":"Permit Compliance","index":7,"n_rows":34,"n_cols":12,"rows_kept":34,"cut":false,"hidden":false,"merged":[[8,11,17,14],[33,4,33,8],[9,0,9,1],[9,2,9,4],[9,5,9,8],[10,0,10,1],[10,2,10,4],[10,5,10,8],[11,0,11,1],[11,2,11,4],[11,5,11,8],[12,0,12,1],[12,2,12,4],[12,5,12,8],[13,0,13,1],[13,2,13,4],[7,0,7,1],[7,2,7,8],[8,0,8,1],[8,2,8,4],[8,5,8,8],[13,5,13,8],[14,0,14,1],[14,2,14,4],[14,5,14,8],[15,0,15,1],[16,2,16,4],[16,5,16,8],[15,2,15,4],[15,5,15,8],[16,0,16,1],[19,1,19,3],[19,4,19,6],[19,7,19,9],[20,1,20,3],[20,4,20,6],[20,7,20,9],[21,1,21,3],[21,4,21,6],[21,7,21,9],[22,1,22,3],[22,4,22,6],[22,7,22,9],[24,4,24,6],[32,1,32,3],[32,4,32,6],[32,7,32,9],[29,1,29,3],[29,4,29,6],[29,7,29,9],[30,1,30,3],[30,4,30,6],[30,7,30,9],[24,7,24,9],[0,4,1,8],[26,0,26,10],[18,0,18,10],[31,1,31,3],[31,4,31,6],[31,7,31,9],[27,1,27,3],[27,4,27,6],[27,7,27,9],[28,1,28,3],[28,4,28,6],[28,7,28,9],[23,1,23,3],[23,4,23,6],[23,7,23,9],[24,1,24,3]]}
[{"$f":"+'Cover Page'!$B$29","v":"Annual Performance Report 2020"},null,null,null,{"$f":"+'Cover Page'!$B$33","v":"South East London Combined Heat and Power (SELCHP)"}]
[]
["Summary of Permit Compliance"]
[]
["Compliance with permit limits for continuously monitored pollutants"]
[]
["The plant met its emission limits as shown in the table below:"]
["Substance",null,"Percentage time compliant during operation",null,null,null,null,null,null,null,null,"Notes:"]
[null,null,"Half-hourly limit",null,null,"Daily limit",null,null,null,null,null,"Report to 2 decimal places, i.e. xx.xx%\n\nPlease provide a brief summary of each notification or non-compliance in the table (rather than just referring to notifications that were sent to the Regulator).  \n\n"]
["Particulates",null,1,null,null,1]
["Oxides of nitrogen",null,1,null,null,1]
["Sulphur dioxide",null,1,null,null,1]
["Carbon monoxide",null,"100% 95% of 10-min averages",null,null,1]
["Total organic carbon",null,0.99817999999999996,null,null,1]
["Hydrogen chloride",null,1,null,null,1]
["Hydrogen fluoride",null,1,null,null,1]
[]
[]
["Summary of any notifications or non-compliances under the permit"]
["Date","Summary of notification or non-compliance [including Line/Reference]",null,null,"Reason ",null,null,"Measures taken to prevent reoccurrence"]
["2020-05-21","A1 DeNOx system in abnormal operation",null,null,"Declare ab-ops time",null,null,"n/a"]
["2020-08-06","A1 emission of smoke form feed chute ",null,null,"Blocked economiser pass",null,null,"Avoid outage delay where possible"]
["2020-08-30","A1 VOC CEMS bad data ",null,null,"CEMS fault",null,null,"Re-training delivered"]
[]
[]
[]
["Summary of any complaints received and actions to taken to resolve them."]
["Date","Summary of complaint [including Line/Reference]",null,null,"Reason *",null,null,"Measures taken to prevent reoccurrence"]
["2021-02-28","Odour (*operator)",null,null,"Both boilers tripped",null,null,"Planned Maintenance"]
["2021-03-01","Noise (*operator)",null,null,"Vacuum Hogger in service",null,null,"Avoid turbine trips "]
[]
[]
[]
[null,null,null,null,"* including whether substantiated by the operator or the EA"]

{"sheet":"Improvements","index":8,"n_rows":39,"n_cols":5,"rows_kept":39,"cut":false,"hidden":false,"merged":[[0,4,2,9],[38,0,46,9],[47,0,47,9],[37,0,37,9],[4,0,4,9],[5,0,13,9],[15,0,15,9],[16,0,24,9],[26,0,26,9],[27,0,35,9]]}
[{"$f":"+'Cover Page'!$B$29","v":"Annual Performance Report 2020"},null,null,null,{"$f":"+'Cover Page'!$B$33","v":"South East London Combined Heat and Power (SELCHP)"}]
[]
["Summary of Plant Improvements"]
[]
["Summary of any efficiency improvements that have been completed within the year."]
["There are early indications that the turbine overhaul improved overall electrical efficiency of the plant in quarter four. Given the heterogeneous nature of the waste feedstock and impact of ambient temperature on electrical generation, the improvement in electrical effeicency has yet to be quantified.  "]
[]
[]
[]
[]
[]
[]
[]
[]
[]
["Summary of any permit improvement conditions that have been completed within the year and the resulting environmental benefits."]
["n/a"]
[]
[]
[]
[]
[]
[]
[]
[]
[]
["Summary of any changes to the plant or operating techniques which required a variation to the permit and a summary of the resulting environmental impact."]
["n/a\n"]
[]
[]
[]
[]
[]
[]
[]
[]
[]
["Summary of any other improvements made to the plant or planned to be made and a summary of the resulting environmental benefits."]
["District Heating Expansion: \nPlans to connect with prospective customers have progressed in 2020. Lewisham DH Network towards Deptford: HNIP funding has been granted in order to accommodate an additional (~7500 homes), planning permission has been granted for the first phase, construction will commence in quarter four of 2021 with commissioning expected in 2023. \nSouthwark DH Network Towards North Peckham: Discussions regarding an extension of the existing network in the borough of Southwark is ongoing (~15,000 homes). The scheme has reached the first stage-gate - Veolia internal approval and, if accepted by London Borough of Southwark, a HNIP application should be submitted early 2021. Veolia proposal includes a 25 year Heat Supply Agreement from SELCHP to deliver heat to 11 public estates (~3200  homes) and schools by retrofitting or decommissioning council gas energy centres. The scheme will deliver a district heating exclusive zone in the proximity of Old Kent Road regeneration area and aims to have connected approximately ~10000 new homes over 15 year period. \n\nBermondsey Development (~1100 homes): A project development agreement has been signed to conduct viability and feasibility studies. The agreement is the first milestone in securing a future SELCHP connection.\n\nVeolia ES SELCHP team has worked in collaboration with BRE and BEIS to establish SAP instructions when assessing heat networks from waste combustion. This is a milestone when developers under S106 are defining their energy strategy - Information can be found on BRE website - note 3 (https://www.bregroup.com/sap/bre-technical-notes/).\""]

{"sheet":"Public Liasion","index":9,"n_rows":29,"n_cols":5,"rows_kept":29,"cut":false,"hidden":false,"merged":[[12,2,13,9],[15,0,15,9],[28,0,28,9],[17,0,18,1],[17,2,18,9],[19,0,20,1],[19,2,20,9],[21,0,22,1],[21,2,22,9],[0,4,1,9],[23,0,24,1],[23,2,24,9],[25,0,26,1],[25,2,26,9],[16,0,16,1],[16,2,16,9],[5,0,5,1],[5,2,5,9],[6,0,7,1],[6,2,7,9],[8,0,9,1],[8,2,9,9],[10,0,11,1],[10,2,11,9],[12,0,13,1]]}
[{"$f":"+'Cover Page'!$B$29","v":"Annual Performance Report 2020"},null,null,null,{"$f":"+'Cover Page'!$B$33","v":"South East London Combined Heat and Power (SELCHP)"}]
[]
["Details of Public & Stakeholder Liaison"]
[]
["Summary of events held during the reporting year."]
["Date",null,"Description"]
["n/a ",null,"Due to the Covid 19 pandemic it has not been possible to hold our annaul open day. A few site tours for various universities were held in January and February. "]
[]
[]
[]
[]
[]
[]
[]
[]
["List of events planned for next year"]
["Date",null,"Description"]
["2021-09-01",null,"Presently, it is not possible to confirm whether or not, SELCHPs  annual open day will be held in 2021, due to the Corona virus pandemic. "]
[]
[]
[]
[]
[]
[]
[]
[]
[]
[]
["If you wish to be involved in the public liaison programme, please contact enquiries@selchp.com "]

{"sheet":"Residue Quality ","index":10,"n_rows":35,"n_cols":6,"rows_kept":35,"cut":false,"hidden":false,"merged":[[16,0,17,1],[16,2,17,6],[18,0,19,1],[18,2,19,6],[12,0,12,6],[13,0,13,1],[13,2,13,6],[5,0,6,6],[7,0,8,6],[9,0,10,6],[14,0,15,1],[14,2,15,6],[20,2,21,6],[22,0,23,1],[22,2,23,6],[31,3,31,4],[27,2,28,2],[28,3,28,4],[28,5,28,6],[27,3,27,6],[26,0,26,6],[0,4,1,6],[35,0,40,6],[32,3,32,4],[34,0,34,6],[27,0,28,1],[29,0,29,1],[30,0,30,1],[31,0,31,1],[32,0,32,1],[29,3,29,4],[30,3,30,4],[29,5,29,6],[30,5,30,6],[31,5,31,6],[32,5,32,6],[20,0,21,1]]}
[{"$f":"+'Cover Page'!$B$29","v":"Annual Performance Report 2020"},null,null,null,{"$f":"+'Cover Page'!$B$33","v":"South East London Combined Heat and Power (SELCHP)"}]
[]
["Residue Quality Monitoring Requirements"]
[]
["Summary of monitoring undertaken and compliance"]
["IBA - Two samples per month are analysed according to the ESA protocol\none sample per quarter is analysed as per permit requirements."]
[]
["APC - One sample per quarter is analysed as per permit requirements"]
[]
[]
[]
[]
["Commentary on any specific events"]
["Date & Event",null,"Description"]
[]
[]
[]
[]
[]
[]
[]
[]
[]
[]
[]
[]
["Residue Quality Monitoring Results"]
["Parameter (unit) ",null,"Limit","Normal Operation "]
[null,null,null,"Bottom ash  ",null,"APC Residues"]
["Loss on Ignition (average %)",null,"<5%","-"]
["Total Organic Carbon (average %)",null,"<3%",1.96]
["No. of Assessments Undertaken",null,"---",24,null,4]
["No. of Hazardous Results",null,"---",0]
[]
["Comments :"]

{"sheet":"Water","index":11,"n_rows":23,"n_cols":10,"rows_kept":23,"cut":false,"hidden":false,"merged":[[5,0,6,9],[7,0,8,9],[9,0,10,9],[12,0,12,9],[13,0,13,1],[13,2,13,9],[22,0,22,2],[22,3,22,5],[14,0,15,1],[14,2,15,9],[16,0,17,1],[16,2,17,9],[18,0,19,1],[18,2,19,9],[0,4,1,9],[29,0,29,2],[29,3,29,5],[26,0,26,2],[26,3,26,5],[27,0,27,2],[27,3,27,5],[28,0,28,2],[28,3,28,5],[23,0,23,2],[23,3,23,5],[24,0,24,2],[24,3,24,5],[25,0,25,2],[25,3,25,5],[21,0,21,9]]}
[{"$f":"+'Cover Page'!$B$29","v":"Annual Performance Report 2020"},null,null,null,{"$f":"+'Cover Page'!$B$33","v":"South East London Combined Heat and Power (SELCHP)"}]
[]
["Emissions to Water"]
[]
["Summary of monitoring undertaken and compliance"]
["Water is only discharged off site to commercial sewer, in accordance with Thames Water's discharge consent requirements. There are no monitoring parameters set our in the permit. Although, monthly aggregate samples are sent for laboratory analysis against the discharge consent parameters.   "]
[]
[]
[]
[]
[]
[]
["Commentary on any specific events"]
["Date & Event",null,"Description"]
[]
[]
[]
[]
[]
[]
[]
["Emissions to Water / Sewer"]
["Parameter",null,null,"Monitoring Frequency",null,null,"Limit","Target","Max.","Average"]

{"sheet":"Air (periodic)","index":12,"n_rows":39,"n_cols":13,"rows_kept":39,"cut":false,"hidden":false,"merged":[[5,12,8,15],[9,12,11,15],[8,0,8,9],[5,0,6,9],[11,0,11,1],[12,0,12,1],[11,3,11,4],[12,3,12,4],[9,0,10,1],[9,5,9,9],[9,3,10,4],[9,2,10,2],[17,0,17,1],[18,0,18,1],[13,0,13,1],[14,0,14,1],[15,0,15,1],[39,0,40,9],[25,0,25,1],[26,0,26,1],[22,0,22,1],[23,0,23,1],[37,0,37,1],[27,0,27,1],[28,0,28,1],[29,0,29,1],[30,0,30,1],[31,0,31,1],[32,0,32,1],[37,3,37,4],[29,3,29,4],[30,3,30,4],[36,3,36,4],[15,3,15,4],[16,3,16,4],[17,3,17,4],[38,0,38,9],[19,0,19,1],[20,0,20,1],[21,0,21,1],[34,3,34,4],[35,3,35,4],[33,0,33,1],[34,0,34,1],[35,0,35,1],[36,0,36,1],[24,0,24,1],[32,3,32,4],[16,0,16,1],[0,4,1,9],[18,3,18,4],[27,3,27,4],[33,3,33,4],[19,3,19,4],[20,3,20,4],[21,3,21,4],[22,3,22,4],[23,3,23,4],[24,3,24,4],[31,3,31,4],[25,3,25,4],[26,3,26,4],[28,3,28,4],[13,3,13,4],[14,3,14,4]]}
[{"$f":"+'Cover Page'!$B$29","v":"Annual Performance Report 2020"},null,null,null,{"$f":"+'Cover Page'!$B$33","v":"South East London Combined Heat and Power (SELCHP)"}]
[]
["Emissions to Air (periodically monitored)"]
[]
["Summary of monitoring undertaken, standards used and compliance",null,null,null,null,null,null,null,null,null,null,null,"Notes:"]
["Bi-Annual monitoring. Standards used as applicable; EN 1948, EN 16911-1 (MID), EN 14792, EN 12619:2013, EN 15058, EN 14790, EN ISO 21258, EN 14789, EN 14791, MID 14385, EN 1911, ISO 11338, ISO 15713, EN 14385, EN 13284-1",null,null,null,null,null,null,null,null,null,null,null,"Template may require adjustment for any bespoke monitoring requirements of permit. "]
[]
[]
["Results of emissions to air that are periodically monitored"]
["Substance",null,"Ref. Period","Emission Limit Value",null,"Average",null,null,null,null,null,null,"User to add additional tables as necessary, depending on whether quarterly or bi-annual reporting is required for the compliance year"]
[null,null,null,null,null,"A1","A2","A3","A4","A5"]
["Hydrogen fluoride",null,"1 hr","2 mg/m3",null,4.4999999999999998E-2,4.3499999999999997E-2]
["Cd and Th and their compounds",null,"6-8hrs","0.05 mg/m3",null,9.4999999999999989E-4,1.15E-3]
["Hg and its compounds",null,"6-8hrs","0.05 mg/m3",null,2.8600000000000001E-4,8.3500000000000002E-4]
["Sb, As, Pb, Cr, Co, Cu, Mn, Ni, V and their compounds",null,"6-8hrs","0.5 mg/m3",null,2.8499999999999998E-2,0.1055]
["Dioxins & Furans (I-TEQ)",null,"6-8hrs","0.1 ng/m3",null,6.6499999999999997E-3,3.5500000000000002E-3]
["PCBs (WHO-TEQ Humans / Mammals)",null,"6-8hrs","None set ng/m3",null,1.005E-3,7.45E-4]
["PCBs (WHO-TEQ Fish)",null,"6-8hrs","None set ng/m3",null,6.5000000000000008E-5,2.6049999999999999E-4]
["PCBs (WHO-TEQ Birds)",null,"6-8hrs","None set ng/m3",null,1.9E-3,1.5399999999999999E-3]
["Dioxins & Furans (WHO-TEQ Humans / Mammals)",null,"6-8hrs","None set ng/m3",null,5.7000000000000002E-3,6.4500000000000009E-3]
["Dioxins & Furans (WHO-TEQ Fish)",null,"6-8hrs","None set ng/m3",null,5.7999999999999996E-3,6.7499999999999991E-3]
["Dioxins & Furans (WHO-TEQ Birds)",null,"6-8hrs","None set ng/m3",null,8.3499999999999998E-3,1.055E-2]
["Anthanthrene",null,"6-8hrs","None set µg/m3",null,4.0099999999999997E-3,8.9499999999999996E-4]
["Benzo(a)anthracene",null,"6-8hrs","None set µg/m3",null,8.25E-4,2.2599999999999999E-3]
["Benzo(a)pyrene",null,"6-8hrs","None set µg/m3",null,8.25E-4,8.9499999999999996E-4]
["Benzo(b)fluoranthene",null,"6-8hrs","None set µg/m3",null,8.25E-4,8.9499999999999996E-4]
["Benzo(b)naptho(2,1-d) thiophene",null,"6-8hrs","None set µg/m3",null,8.25E-4,8.9499999999999996E-4]
["Benzo(c)phenanthrene",null,"6-8hrs","None set µg/m3",null,5.0199999999999993E-3,8.9499999999999996E-4]
["Benzo(ghi)perylene",null,"6-8hrs","None set µg/m3",null,8.25E-4,1.5200000000000001E-3]
["Benzo(k)fluoranthene",null,"6-8hrs","None set µg/m3",null,8.25E-4,8.9499999999999996E-4]
["Cholanthrene",null,"6-8hrs","None set µg/m3",null,8.25E-4,8.9499999999999996E-4]
["Chrysene",null,"6-8hrs","None set µg/m3",null,3.0000000000000001E-3,1.0950000000000001E-3]
["Cyclopenta(cd)pyrene",null,"6-8hrs","None set µg/m3",null,8.25E-4,8.9499999999999996E-4]
["Dibenzo(ai)pyrene",null,"6-8hrs","None set µg/m3",null,8.25E-4,2.1349999999999997E-3]
["Dibenzo(ah)anthracene",null,"6-8hrs","None set µg/m3",null,8.25E-4,6.4100000000000008E-3]
["Fluoranthene",null,"6-8hrs","None set µg/m3",null,6.6999999999999994E-3,2.3449999999999999E-3]
["Indeno(123-cd) pyrene",null,"6-8hrs","None set µg/m3",null,8.25E-4,8.9499999999999996E-4]
["Naphthalene",null,"6-8hrs","None set µg/m3",null,1.4796549999999999,1.499725]
["Comments :"]

{"sheet":"Air (CEMS)","index":13,"n_rows":27,"n_cols":14,"rows_kept":27,"cut":false,"hidden":false,"merged":[[25,0,25,10],[27,0,28,10],[11,0,12,0],[5,0,6,10],[8,0,8,10],[9,0,10,0],[9,2,10,2],[9,1,10,1],[9,3,9,4],[9,5,9,6],[9,7,9,8],[9,9,9,10]]}
[{"$f":"+'Cover Page'!$B$29","v":"Annual Performance Report 2020"},null,null,null,null,{"$f":"+'Cover Page'!$B$33","v":"South East London Combined Heat and Power (SELCHP)"}]
[]
["Emissions to Air (continuously monitored)"]
[null,null,null,null,null,null,null,null,null,null,null,null,null,"Notes:"]
["Summary of monitoring undertaken, standards used and compliance",null,null,null,null,null,null,null,null,null,null,null,null,"Template may require adjustment for any bespoke monitoring requirements of permit"]
["Three MCERT cretified CEMS are installed at the base of the Chimeney. Two duty, one for each combustion line and a third standby which may be selected to either line. Extractive sampling heated lines smple the flues gases. Instuments; MIR-FT, FID, in flue electrified probe and O2 probe.    ",null,null,null,null,null,null,null,null,null,null,null,null,"Report to 2 decimal places, i.e. xx.xx%"]
[]
[]
["Results of emissions to air that are continuously monitored (maximum and average values for each line)"]
["Substance","Reference Period","Emission Limit Value","A1",null,"A2",null,"A3",null,"A4"]
[null,null,null,"Max.","Avg.","Max.","Avg.","Max.","Avg.","Max.","Avg."]
["Oxides of nitrogen","Daily mean","200 mg/m3 ",{"$f":"NOx!$O$19","v":195.98},{"$f":"NOx!$N$19","v":173.45916666666665},{"$f":"NOx!$O$34","v":197.53},{"$f":"NOx!$N$34","v":174.15916666666666}]
[null,"½ hourly mean","400 mg/m3 ",{"$f":"NOx!$M$19","v":315.08},{"$f":"NOx!$L$19","v":173.09666666666669},{"$f":"NOx!$M$34","v":274.88},{"$f":"NOx!$L$34","v":173.95916666666665}]
["Particulates","Daily mean","10 mg/m3",{"$f":"Particulates!$O$19","v":7.29},{"$f":"Particulates!$N$19","v":1.6199999999999999},{"$f":"Particulates!$O$34","v":2},{"$f":"Particulates!$N$34","v":0.33250000000000002}]
[null,"½ hourly mean","30 mg/m3 ",{"$f":"Particulates!$M$19","v":26.65},{"$f":"Particulates!$L$19","v":1.6441666666666663},{"$f":"Particulates!$M$34","v":14.53},{"$f":"Particulates!$L$34","v":0.33500000000000002}]
["Total Organic Carbon ","Daily mean","10 mg/m3 ",{"$f":"TOC!$O$19","v":1.35},{"$f":"TOC!$N$19","v":0.16},{"$f":"TOC!$O$34","v":0.75},{"$f":"TOC!$N$34","v":-1.6666666666666635E-3}]
[null,"½ hourly mean","20 mg/m3 ",{"$f":"TOC!$M$19","v":8.48},{"$f":"TOC!$L$19","v":5.1666666666666659E-2},{"$f":"TOC!$M$34","v":6.14},{"$f":"TOC!$L$34","v":-8.3333333333332948E-4}]
["Hydrogen chloride ","Daily mean","10 mg/m3 ",{"$f":"HCl!$O$19","v":8.31},{"$f":"HCl!$N$19","v":6.1224999999999996},{"$f":"HCl!$O$34","v":8.23},{"$f":"HCl!$N$34","v":5.814166666666666}]
[null,"½ hourly mean","60 mg/m3 ",{"$f":"HCl!$M$19","v":52.79},{"$f":"HCl!$L$19","v":6.1208333333333336},{"$f":"HCl!$M$34","v":40.200000000000003},{"$f":"HCl!$L$34","v":5.7824999999999998}]
["Sulphur dioxide","Daily mean","50 mg/m3 ",{"$f":"'SO2'!$O$19","v":22.44},{"$f":"'SO2'!$N$19","v":10.468333333333332},{"$f":"'SO2'!$O$34","v":26.53},{"$f":"'SO2'!$N$34","v":12.305}]
[null,"½ hourly mean","200 mg/m3 ",{"$f":"'SO2'!$M$19","v":182.5},{"$f":"'SO2'!$L$19","v":10.538333333333334},{"$f":"'SO2'!$M$34","v":166.67},{"$f":"'SO2'!$L$34","v":12.220833333333331}]
["Carbon monoxide ","Daily mean","50 mg/m3 ",{"$f":"'CO 95% 10 min'!$Q$19","v":8.5},{"$f":"'CO 95% 10 min'!$P$19","v":2.2149999999999999},{"$f":"'CO 95% 10 min'!$Q$19","v":8.5},{"$f":"'CO 95% 10 min'!$P$19","v":2.2149999999999999}]
[null,"½ hourly mean *","100 mg/m3 *","n/a","n/a","n/a","n/a"]
[null,"95%ile 10-min avg *","150 mg/m3 *",{"$f":"MAX('CO 95% 10 min'!$M$7:$M$18)","v":11},{"$f":"'CO 95% 10 min'!$M$19","v":6.75},{"$f":"MAX('CO 95% 10 min'!$M$22:$M$33)","v":11},{"$f":"'CO 95% 10 min'!$M$34","v":5.75}]
[" Ammonia","Daily mean","No limit set",{"$f":"'NH3'!$O$19","v":6},{"$f":"'NH3'!$N$19","v":1.5875000000000001},{"$f":"'NH3'!$O$34","v":8.23},{"$f":"'NH3'!$N$34","v":2.1724999999999999}]
["* = delete or amend as appropriate"]
["Comments :"]

{"sheet":"HCl","index":14,"n_rows":79,"n_cols":17,"rows_kept":79,"cut":false,"hidden":false,"merged":[[4,1,4,3],[4,4,4,6],[48,0,51,6],[47,0,47,6],[6,9,18,9],[21,9,33,9],[36,9,48,9],[0,4,1,9],[12,16,15,18],[51,9,63,9],[66,9,78,9],[4,9,4,14],[3,16,7,18],[9,16,11,18]]}
[{"$f":"+'Cover Page'!$B$29","v":"Annual Performance Report 2020"},null,null,null,{"$f":"+'Cover Page'!$B$33","v":"South East London Combined Heat and Power (SELCHP)"}]
[]
["Monitoring of Hydrogen Chloride emissions",null,null,"Whole Installation",null,null,"See  Notes in Cell Q3",null,null,{"$f":"+A3","v":"Monitoring of Hydrogen Chloride emissions"},null,null,null,"Per Combustion Line",null,null,"Notes:"]
[null,null,null,null,null,null,null,null,null,null,null,null,null,null,null,null,"User to add logic to complete Whole installation, Table A5:G18. From the data in Per Combustion Line, Table J6:O79, subject to No. of lines installed"]
["mg/Nm3","1/2 Hourly Reference Periods",null,null,"Daily Reference Periods"]
[{"$f":"+'Cover Page'!C39","v":2020},"1/2 hourly HCl ELV","Monthly 1/2 hourly mean","Highest 1/2 hourly maximum","Daily HCl ELV","Monthly daily mean","Highest daily maximum",null,null,{"$f":"+A6","v":2020},"mg/Nm3","Monthly 1/2 hourly mean","Monthly 1/2 hourly maximum","Monthly daily mean","Monthly daily maximum"]
["Jan",60,{"$f":"(L7+L22)/2","v":6.2149999999999999},{"$f":"(M7+M22)/2","v":26.590000000000003},10,{"$f":"(N7+N22)/2","v":6.23},{"$f":"(O7+O22)/2","v":7.4399999999999995},null,null,"A1","Jan",6.35,20.23,6.34,7.38]
["Feb",60,{"$f":"(L8+L23)/2","v":6.1},41.519999999999996,10,{"$f":"(N8+N23)/2","v":6.1},7.76,null,null,null,"Feb",6.33,52.79,6.34,7.76]
["Mar",60,5.9050000000000002,31.009999999999998,10,5.9700000000000006,7.5649999999999995,null,null,null,"Mar",5.94,36.01,5.94,7.53,null,"Whole Installation table A5:G18:"]
["Apr",60,6.2249999999999996,38.474999999999994,10,6.2249999999999996,7.7,null,null,null,"Apr",6.31,44.66,6.31,8.31,null,"Mean: for 1/2 hourly and daily periods calculate mean of values across all operational combustion lines for the month"]
["May",60,5.8350000000000009,35.19,10,5.8350000000000009,7.49,null,null,null,"May",6.19,39.39,6.19,7.65]
["Jun",60,6.5750000000000002,35.409999999999997,10,6.58,7.7649999999999997,null,null,null,"Jun",7.04,46.42,7.04,8.27]
["Jul",60,6.1899999999999995,27.375,10,6.1999999999999993,7.4049999999999994,null,null,null,"Jul",6.78,28.01,6.77,7.92,null,"Maximum: for 1/2 hourly and daily periods use the highest value across all operational combustion lines for the month"]
["Aug",60,5.125,19.689999999999998,10,5.0999999999999996,6.2149999999999999,null,null,null,"Aug",5.41,24.02,5.27,6.43]
["Sep",60,5.5150000000000006,22.565000000000001,10,5.65,8.01,null,null,null,"Sep",5.54,26.44,5.72,8.08]
["Oct",60,5.6550000000000002,19.619999999999997,10,5.6449999999999996,7.335,null,null,null,"Oct",5.62,19.22,5.6,7.28]
["Nov",60,5.9050000000000002,19.23,10,5.91,7.58,null,null,null,"Nov",5.98,18.260000000000002,5.99,6.93]
["Dec",60,6.1749999999999998,35.799999999999997,10,6.1749999999999998,7.91,null,null,null,"Dec",5.96,31.4,5.96,7.7]
[null,null,null,null,null,null,null,null,null,null,"Annual",{"$f":"AVERAGE(L7:L18)","v":6.1208333333333336},{"$f":"MAX(M7:M18)","v":52.79},{"$f":"AVERAGE(N7:N18)","v":6.1224999999999996},{"$f":"MAX(O7:O18)","v":8.31}]
[]
[null,null,null,null,null,null,null,null,null,{"$f":"+A6","v":2020},"mg/Nm3","Monthly 1/2 hourly mean","Monthly 1/2 hourly maximum","Monthly daily mean","Monthly daily maximum"]
[null,null,null,null,null,null,null,null,null,"A2","Jan",6.08,32.950000000000003,6.12,7.5]
[null,null,null,null,null,null,null,null,null,null,"Feb",5.87,30.25,5.86,7.76]
[null,null,null,null,null,null,null,null,null,null,"Mar",5.87,26.01,6,7.6]
[null,null,null,null,null,null,null,null,null,null,"Apr",6.14,32.29,6.14,7.09]
[null,null,null,null,null,null,null,null,null,null,"May",5.48,30.99,5.48,7.33]
[null,null,null,null,null,null,null,null,null,null,"Jun",6.11,24.4,6.12,7.26]
[null,null,null,null,null,null,null,null,null,null,"Jul",5.6,26.74,5.63,6.89]
[null,null,null,null,null,null,null,null,null,null,"Aug",4.84,15.36,4.93,6]
[null,null,null,null,null,null,null,null,null,null,"Sep",5.49,18.690000000000001,5.58,7.94]
[null,null,null,null,null,null,null,null,null,null,"Oct",5.69,20.02,5.69,7.39]
[null,null,null,null,null,null,null,null,null,null,"Nov",5.83,20.2,5.83,8.23]
[null,null,null,null,null,null,null,null,null,null,"Dec",6.39,40.200000000000003,6.39,8.1199999999999992]
[null,null,null,null,null,null,null,null,null,null,"Annual",{"$f":"AVERAGE(L22:L33)","v":5.7824999999999998},{"$f":"MAX(M22:M33)","v":40.200000000000003},{"$f":"AVERAGE(N22:N33)","v":5.814166666666666},{"$f":"MAX(O22:O33)","v":8.23}]
[]
[null,null,null,null,null,null,null,null,null,{"$f":"+A6","v":2020},"mg/Nm3","Monthly 1/2 hourly mean","Monthly 1/2 hourly maximum","Monthly daily mean","Monthly daily maximum"]
[null,null,null,null,null,null,null,null,null,"A3","Jan"]
[null,null,null,null,null,null,null,null,null,null,"Feb"]
[null,null,null,null,null,null,null,null,null,null,"Mar"]
[null,null,null,null,null,null,null,null,null,null,"Apr"]
[null,null,null,null,null,null,null,null,null,null,"May"]
[null,null,null,null,null,null,null,null,null,null,"Jun"]
[null,null,null,null,null,null,null,null,null,null,"Jul"]
[null,null,null,null,null,null,null,null,null,null,"Aug"]
[null,null,null,null,null,null,null,null,null,null,"Sep"]
[null,null,null,null,null,null,null,null,null,null,"Oct"]
[null,null,null,null,null,null,null,null,null,null,"Nov"]
["Comments :",null,null,null,null,null,null,null,null,null,"Dec"]
[null,null,null,null,null,null,null,null,null,null,"Annual",{"$f":"AVERAGE(L37:L48)","v":{"$error":"#DIV/0!"}},{"$f":"MAX(M37:M48)","v":0},{"$f":"AVERAGE(N37:N48)","v":{"$error":"#DIV/0!"}},{"$f":"MAX(O37:O48)","v":0}]
[]
[null,null,null,null,null,null,null,null,null,{"$f":"+A6","v":2020},"mg/Nm3","Monthly 1/2 hourly mean","Monthly 1/2 hourly maximum","Monthly daily mean","Monthly daily maximum"]
[null,null,null,null,null,null,null,null,null,"A4","Jan"]
[null,null,null,null,null,null,null,null,null,null,"Feb"]
[null,null,null,null,null,null,null,null,null,null,"Mar"]
[null,null,null,null,null,null,null,null,null,null,"Apr"]
[null,null,null,null,null,null,null,null,null,null,"May"]
[null,null,null,null,null,null,null,null,null,null,"Jun"]
[null,null,null,null,null,null,null,null,null,null,"Jul"]
[null,null,null,null,null,null,null,null,null,null,"Aug"]
[null,null,null,null,null,null,null,null,null,null,"Sep"]
[null,null,null,null,null,null,null,null,null,null,"Oct"]
[null,null,null,null,null,null,null,null,null,null,"Nov"]
[null,null,null,null,null,null,null,null,null,null,"Dec"]
[null,null,null,null,null,null,null,null,null,null,"Annual",{"$f":"AVERAGE(L52:L63)","v":{"$error":"#DIV/0!"}},{"$f":"MAX(M52:M63)","v":0},{"$f":"AVERAGE(N52:N63)","v":{"$error":"#DIV/0!"}},{"$f":"MAX(O52:O63)","v":0}]
[]
[null,null,null,null,null,null,null,null,null,{"$f":"+A6","v":2020},"mg/Nm3","Monthly 1/2 hourly mean","Monthly 1/2 hourly maximum","Monthly daily mean","Monthly daily maximum"]
[null,null,null,null,null,null,null,null,null,"A5","Jan"]
[null,null,null,null,null,null,null,null,null,null,"Feb"]
[null,null,null,null,null,null,null,null,null,null,"Mar"]
[null,null,null,null,null,null,null,null,null,null,"Apr"]
[null,null,null,null,null,null,null,null,null,null,"May"]
[null,null,null,null,null,null,null,null,null,null,"Jun"]
[null,null,null,null,null,null,null,null,null,null,"Jul"]
[null,null,null,null,null,null,null,null,null,null,"Aug"]
[null,null,null,null,null,null,null,null,null,null,"Sep"]
[null,null,null,null,null,null,null,null,null,null,"Oct"]
[null,null,null,null,null,null,null,null,null,null,"Nov"]
[null,null,null,null,null,null,null,null,null,null,"Dec"]
[null,null,null,null,null,null,null,null,null,null,"Annual",{"$f":"AVERAGE(L67:L78)","v":{"$error":"#DIV/0!"}},{"$f":"MAX(M67:M78)","v":0},{"$f":"AVERAGE(N67:N78)","v":{"$error":"#DIV/0!"}},{"$f":"MAX(O67:O78)","v":0}]

{"sheet":"SO2","index":15,"n_rows":79,"n_cols":17,"rows_kept":79,"cut":false,"hidden":false,"merged":[[4,1,4,3],[4,4,4,6],[4,9,4,14],[6,9,18,9],[21,9,33,9],[0,4,0,6],[3,16,7,18],[9,16,11,18],[12,16,15,18],[66,9,78,9],[36,9,48,9],[47,0,47,6],[48,0,51,6],[51,9,63,9]]}
[{"$f":"+'Cover Page'!$B$29","v":"Annual Performance Report 2020"},null,null,null,{"$f":"+'Cover Page'!$B$33","v":"South East London Combined Heat and Power (SELCHP)"}]
[]
["Monitoring of Sulphur dioxide emissions",null,null,"Whole Installation",null,null,"See  Notes in Cell Q3",null,null,{"$f":"+A3","v":"Monitoring of Sulphur dioxide emissions"},null,null,null,"Per Combustion Line",null,null,"Notes:"]
[null,null,null,null,null,null,null,null,null,null,null,null,null,null,null,null,"User to add logic to complete Whole installation, Table A5:G18. From the data in Per Combustion Line, Table J6:O79, subject to No. of lines installed"]
["mg/Nm3","1/2 Hourly Reference Periods",null,null,"Daily Reference Periods"]
[{"$f":"+'Cover Page'!C39","v":2020},"1/2 hourly SO2 ELV","Monthly 1/2 hourly mean","Highest 1/2 hourly maximum","Daily SO2 ELV","Monthly daily mean","Highest daily maximum",null,null,{"$f":"+A6","v":2020},"mg/Nm3","Monthly 1/2 hourly mean","Monthly 1/2 hourly maximum","Monthly daily mean","Monthly daily maximum"]
["Jan",200,{"$f":"(L7+L22)/2","v":10.199999999999999},{"$f":"(M7+M22)/2","v":27.17},50,{"$f":"(N7+N22)/2","v":10.195},{"$f":"(O7+O22)/2","v":12.445},null,null,"A1","Jan",6.84,19.13,6.72,8.84]
["Feb",200,{"$f":"(L8+L23)/2","v":11.6},55.905000000000001,50,{"$f":"(N8+N23)/2","v":11.605},13.94,null,null,null,"Feb",8.6,64.62,8.61,11.27]
["Mar",200,10.42,69.484999999999999,50,10.434999999999999,18.270000000000003,null,null,null,"Mar",10.17,73.69,10.17,19.850000000000001,null,"Whole Installation table A5:G18:"]
["Apr",200,12.295,143.44,50,12.29,20.055,null,null,null,"Apr",11.27,142.28,11.27,17.14,null,"Mean: for 1/2 hourly and daily periods calculate mean of values across all operational combustion lines for the month"]
["May",200,13.93,{"$f":"(M11+M26)/2","v":167.03},50,13.95,24.484999999999999,null,null,null,"May",12.91,182.5,12.92,22.44]
["Jun",200,11.245000000000001,141.64999999999998,50,11.254999999999999,16.425000000000001,null,null,null,"Jun",11.14,116.63,11.15,16.170000000000002]
["Jul",200,10.41,131.345,50,10.475,18.77,null,null,null,"Jul",9.2899999999999991,123.98,9.2799999999999994,19.86,null,"Maximum: for 1/2 hourly and daily periods use the highest value across all operational combustion lines for the month"]
["Aug",200,9.3949999999999996,53.54,50,9.09,13.385,null,null,null,"Aug",9.7200000000000006,53.6,8.92,13.02]
["Sep",200,14.024999999999999,88.12,50,14.445,18.829999999999998,null,null,null,"Sep",13.43,78.47,13.75,18.239999999999998]
["Oct",200,11.324999999999999,87.034999999999997,50,11.205,15.469999999999999,null,null,null,"Oct",10.97,80.739999999999995,10.74,14.22]
["Nov",200,10.16,75.394999999999996,50,10.145,14.684999999999999,null,null,null,"Nov",10.59,41.85,10.56,13.79]
["Dec",200,11.55,63.569999999999993,50,11.55,18.884999999999998,null,null,null,"Dec",11.53,53.01,11.53,17.88]
[null,null,null,null,null,null,null,null,null,null,"Annual",{"$f":"AVERAGE(L7:L18)","v":10.538333333333334},{"$f":"MAX(M7:M18)","v":182.5},{"$f":"AVERAGE(N7:N18)","v":10.468333333333332},{"$f":"MAX(O7:O18)","v":22.44}]
[]
[null,null,null,null,null,null,null,null,null,{"$f":"+A6","v":2020},"mg/Nm3","Monthly 1/2 hourly mean","Monthly 1/2 hourly maximum","Monthly daily mean","Monthly daily maximum"]
[null,null,null,null,null,null,null,null,null,"A2","Jan",13.56,35.21,13.67,16.05]
[null,null,null,null,null,null,null,null,null,null,"Feb",14.6,47.19,14.6,16.61]
[null,null,null,null,null,null,null,null,null,null,"Mar",10.67,65.28,10.7,16.690000000000001]
[null,null,null,null,null,null,null,null,null,null,"Apr",13.32,144.6,13.31,22.97]
[null,null,null,null,null,null,null,null,null,null,"May",14.95,151.56,14.98,26.53]
[null,null,null,null,null,null,null,null,null,null,"Jun",11.35,166.67,11.36,16.68]
[null,null,null,null,null,null,null,null,null,null,"Jul",11.53,138.71,11.67,17.68]
[null,null,null,null,null,null,null,null,null,null,"Aug",9.07,53.48,9.26,13.75]
[null,null,null,null,null,null,null,null,null,null,"Sep",14.62,97.77,15.14,19.420000000000002]
[null,null,null,null,null,null,null,null,null,null,"Oct",11.68,93.33,11.67,16.72]
[null,null,null,null,null,null,null,null,null,null,"Nov",9.73,108.94,9.73,15.58]
[null,null,null,null,null,null,null,null,null,null,"Dec",11.57,74.13,11.57,19.89]
[null,null,null,null,null,null,null,null,null,null,"Annual",{"$f":"AVERAGE(L22:L33)","v":12.220833333333331},{"$f":"MAX(M22:M33)","v":166.67},{"$f":"AVERAGE(N22:N33)","v":12.305},{"$f":"MAX(O22:O33)","v":26.53}]
[]
[null,null,null,null,null,null,null,null,null,{"$f":"+A6","v":2020},"mg/Nm3","Monthly 1/2 hourly mean","Monthly 1/2 hourly maximum","Monthly daily mean","Monthly daily maximum"]
[null,null,null,null,null,null,null,null,null,"A3","Jan"]
[null,null,null,null,null,null,null,null,null,null,"Feb"]
[null,null,null,null,null,null,null,null,null,null,"Mar"]
[null,null,null,null,null,null,null,null,null,null,"Apr"]
[null,null,null,null,null,null,null,null,null,null,"May"]
[null,null,null,null,null,null,null,null,null,null,"Jun"]
[null,null,null,null,null,null,null,null,null,null,"Jul"]
[null,null,null,null,null,null,null,null,null,null,"Aug"]
[null,null,null,null,null,null,null,null,null,null,"Sep"]
[null,null,null,null,null,null,null,null,null,null,"Oct"]
[null,null,null,null,null,null,null,null,null,null,"Nov"]
["Comments :",null,null,null,null,null,null,null,null,null,"Dec"]
[null,null,null,null,null,null,null,null,null,null,"Annual",{"$f":"AVERAGE(L37:L48)","v":{"$error":"#DIV/0!"}},{"$f":"MAX(M37:M48)","v":0},{"$f":"AVERAGE(N37:N48)","v":{"$error":"#DIV/0!"}},{"$f":"MAX(O37:O48)","v":0}]
[]
[null,null,null,null,null,null,null,null,null,{"$f":"+A6","v":2020},"mg/Nm3","Monthly 1/2 hourly mean","Monthly 1/2 hourly maximum","Monthly daily mean","Monthly daily maximum"]
[null,null,null,null,null,null,null,null,null,"A4","Jan"]
[null,null,null,null,null,null,null,null,null,null,"Feb"]
[null,null,null,null,null,null,null,null,null,null,"Mar"]
[null,null,null,null,null,null,null,null,null,null,"Apr"]
[null,null,null,null,null,null,null,null,null,null,"May"]
[null,null,null,null,null,null,null,null,null,null,"Jun"]
[null,null,null,null,null,null,null,null,null,null,"Jul"]
[null,null,null,null,null,null,null,null,null,null,"Aug"]
[null,null,null,null,null,null,null,null,null,null,"Sep"]
[null,null,null,null,null,null,null,null,null,null,"Oct"]
[null,null,null,null,null,null,null,null,null,null,"Nov"]
[null,null,null,null,null,null,null,null,null,null,"Dec"]
[null,null,null,null,null,null,null,null,null,null,"Annual",{"$f":"AVERAGE(L52:L63)","v":{"$error":"#DIV/0!"}},{"$f":"MAX(M52:M63)","v":0},{"$f":"AVERAGE(N52:N63)","v":{"$error":"#DIV/0!"}},{"$f":"MAX(O52:O63)","v":0}]
[]
[null,null,null,null,null,null,null,null,null,{"$f":"+A6","v":2020},"mg/Nm3","Monthly 1/2 hourly mean","Monthly 1/2 hourly maximum","Monthly daily mean","Monthly daily maximum"]
[null,null,null,null,null,null,null,null,null,"A5","Jan"]
[null,null,null,null,null,null,null,null,null,null,"Feb"]
[null,null,null,null,null,null,null,null,null,null,"Mar"]
[null,null,null,null,null,null,null,null,null,null,"Apr"]
[null,null,null,null,null,null,null,null,null,null,"May"]
[null,null,null,null,null,null,null,null,null,null,"Jun"]
[null,null,null,null,null,null,null,null,null,null,"Jul"]
[null,null,null,null,null,null,null,null,null,null,"Aug"]
[null,null,null,null,null,null,null,null,null,null,"Sep"]
[null,null,null,null,null,null,null,null,null,null,"Oct"]
[null,null,null,null,null,null,null,null,null,null,"Nov"]
[null,null,null,null,null,null,null,null,null,null,"Dec"]
[null,null,null,null,null,null,null,null,null,null,"Annual",{"$f":"AVERAGE(L67:L78)","v":{"$error":"#DIV/0!"}},{"$f":"MAX(M67:M78)","v":0},{"$f":"AVERAGE(N67:N78)","v":{"$error":"#DIV/0!"}},{"$f":"MAX(O67:O78)","v":0}]

{"sheet":"NOx","index":16,"n_rows":79,"n_cols":17,"rows_kept":79,"cut":false,"hidden":false,"merged":[[4,1,4,3],[4,4,4,6],[4,9,4,14],[6,9,18,9],[21,9,33,9],[0,4,1,6],[3,16,7,18],[9,16,11,18],[12,16,15,18],[66,9,78,9],[36,9,48,9],[47,0,47,6],[48,0,51,6],[51,9,63,9]]}
[{"$f":"+'Cover Page'!$B$29","v":"Annual Performance Report 2020"},null,null,null,{"$f":"+'Cover Page'!$B$33","v":"South East London Combined Heat and Power (SELCHP)"}]
[]
["Monitoring of Oxides of Nitrogen emissions",null,null,"Whole Installation",null,null,"See  Notes in Cell Q3",null,null,{"$f":"+A3","v":"Monitoring of Oxides of Nitrogen emissions"},null,null,null,"Per Combustion Line",null,null,"Notes:"]
[null,null,null,null,null,null,null,null,null,null,null,null,null,null,null,null,"User to add logic to complete Whole installation, Table A5:G18. From the data in Per Combustion Line, Table J6:O79, subject to No. of lines installed"]
["mg/Nm3","1/2 Hourly Reference Periods",null,null,"Daily Reference Periods"]
[{"$f":"+'Cover Page'!C39","v":2020},"1/2 hourly NOx ELV","Monthly 1/2 hourly mean","Highest 1/2 hourly maximum","Daily NOx ELV","Monthly daily mean","Highest daily maximum",null,null,{"$f":"+A6","v":2020},"mg/Nm3","Monthly 1/2 hourly mean","Monthly 1/2 hourly maximum","Monthly daily mean","Monthly daily maximum"]
["Jan",400,{"$f":"(L7+L22)/2","v":178.08499999999998},{"$f":"(M7+M22)/2","v":241.12},200,{"$f":"(N7+N22)/2","v":177.87},{"$f":"(O7+O22)/2","v":185.52499999999998},null,null,"A1","Jan",175.45,242.4,175.26,182.54]
["Feb",400,{"$f":"(L8+L23)/2","v":178.035},250.33499999999998,200,{"$f":"(N8+N23)/2","v":178.10500000000002},191.51499999999999,null,null,null,"Feb",173.69,225.79,173.77,185.5]
["Mar",400,177.81,250,200,178.19,187.57999999999998,null,null,null,"Mar",175.63,239.78,175.62,184.32,null,"Whole Installation table A5:G18:"]
["Apr",400,181.16,239.185,200,181.16,195.35,null,null,null,"Apr",181.44,246.93,181.43,195.98,null,"Mean: for 1/2 hourly and daily periods calculate mean of values across all operational combustion lines for the month"]
["May",400,177.19499999999999,273.30500000000001,200,177.22,191.38499999999999,null,null,null,"May",176.25,315.08,176.3,192.34]
["Jun",400,172.52999999999997,250.01,200,172.48,183.785,null,null,null,"Jun",172.42,261.06,172.32,182.67]
["Jul",400,171.08500000000001,251.12,200,171.3,187.11,null,null,null,"Jul",171.84,230.64,171.76,187.18,null,"Maximum: for 1/2 hourly and daily periods use the highest value across all operational combustion lines for the month"]
["Aug",400,166.07,222.16,200,167.11,184.10000000000002,null,null,null,"Aug",159.72,218.82,161.93,184.09]
["Sep",400,166.97,237.54,200,168.79499999999999,182.39,null,null,null,"Sep",166.19,259.14999999999998,168.42,183.26]
["Oct",400,172.93,228.54500000000002,200,172.995,184.67000000000002,null,null,null,"Oct",174.63,217.93,174.76,184.86]
["Nov",400,175.005,229.70499999999998,200,175.02499999999998,188.82499999999999,null,null,null,"Nov",180.19,244.89,180.23,190.48]
["Dec",400,165.46,207.85499999999999,200,165.46,181.51999999999998,null,null,null,"Dec",169.71,208.95,169.71,186.56]
[null,null,null,null,null,null,null,null,null,null,"Annual",{"$f":"AVERAGE(L7:L18)","v":173.09666666666669},{"$f":"MAX(M7:M18)","v":315.08},{"$f":"AVERAGE(N7:N18)","v":173.45916666666665},{"$f":"MAX(O7:O18)","v":195.98}]
[]
[null,null,null,null,null,null,null,null,null,{"$f":"+A6","v":2020},"mg/Nm3","Monthly 1/2 hourly mean","Monthly 1/2 hourly maximum","Monthly daily mean","Monthly daily maximum"]
[null,null,null,null,null,null,null,null,null,"A2","Jan",180.72,239.84,180.48,188.51]
[null,null,null,null,null,null,null,null,null,null,"Feb",182.38,274.88,182.44,197.53]
[null,null,null,null,null,null,null,null,null,null,"Mar",179.99,260.22000000000003,180.76,190.84]
[null,null,null,null,null,null,null,null,null,null,"Apr",180.88,231.44,180.89,194.72]
[null,null,null,null,null,null,null,null,null,null,"May",178.14,231.53,178.14,190.43]
[null,null,null,null,null,null,null,null,null,null,"Jun",172.64,238.96,172.64,184.9]
[null,null,null,null,null,null,null,null,null,null,"Jul",170.33,271.60000000000002,170.84,187.04]
[null,null,null,null,null,null,null,null,null,null,"Aug",172.42,225.5,172.29,184.11]
[null,null,null,null,null,null,null,null,null,null,"Sep",167.75,215.93,169.17,181.52]
[null,null,null,null,null,null,null,null,null,null,"Oct",171.23,239.16,171.23,184.48]
[null,null,null,null,null,null,null,null,null,null,"Nov",169.82,214.52,169.82,187.17]
[null,null,null,null,null,null,null,null,null,null,"Dec",161.21,206.76,161.21,176.48]
[null,null,null,null,null,null,null,null,null,null,"Annual",{"$f":"AVERAGE(L22:L33)","v":173.95916666666665},{"$f":"MAX(M22:M33)","v":274.88},{"$f":"AVERAGE(N22:N33)","v":174.15916666666666},{"$f":"MAX(O22:O33)","v":197.53}]
[]
[null,null,null,null,null,null,null,null,null,{"$f":"+A6","v":2020},"mg/Nm3","Monthly 1/2 hourly mean","Monthly 1/2 hourly maximum","Monthly daily mean","Monthly daily maximum"]
[null,null,null,null,null,null,null,null,null,"A3","Jan"]
[null,null,null,null,null,null,null,null,null,null,"Feb"]
[null,null,null,null,null,null,null,null,null,null,"Mar"]
[null,null,null,null,null,null,null,null,null,null,"Apr"]
[null,null,null,null,null,null,null,null,null,null,"May"]
[null,null,null,null,null,null,null,null,null,null,"Jun"]
[null,null,null,null,null,null,null,null,null,null,"Jul"]
[null,null,null,null,null,null,null,null,null,null,"Aug"]
[null,null,null,null,null,null,null,null,null,null,"Sep"]
[null,null,null,null,null,null,null,null,null,null,"Oct"]
[null,null,null,null,null,null,null,null,null,null,"Nov"]
["Comments :",null,null,null,null,null,null,null,null,null,"Dec"]
[null,null,null,null,null,null,null,null,null,null,"Annual",{"$f":"AVERAGE(L37:L48)","v":{"$error":"#DIV/0!"}},{"$f":"MAX(M37:M48)","v":0},{"$f":"AVERAGE(N37:N48)","v":{"$error":"#DIV/0!"}},{"$f":"MAX(O37:O48)","v":0}]
[]
[null,null,null,null,null,null,null,null,null,{"$f":"+A6","v":2020},"mg/Nm3","Monthly 1/2 hourly mean","Monthly 1/2 hourly maximum","Monthly daily mean","Monthly daily maximum"]
[null,null,null,null,null,null,null,null,null,"A4","Jan"]
[null,null,null,null,null,null,null,null,null,null,"Feb"]
[null,null,null,null,null,null,null,null,null,null,"Mar"]
[null,null,null,null,null,null,null,null,null,null,"Apr"]
[null,null,null,null,null,null,null,null,null,null,"May"]
[null,null,null,null,null,null,null,null,null,null,"Jun"]
[null,null,null,null,null,null,null,null,null,null,"Jul"]
[null,null,null,null,null,null,null,null,null,null,"Aug"]
[null,null,null,null,null,null,null,null,null,null,"Sep"]
[null,null,null,null,null,null,null,null,null,null,"Oct"]
[null,null,null,null,null,null,null,null,null,null,"Nov"]
[null,null,null,null,null,null,null,null,null,null,"Dec"]
[null,null,null,null,null,null,null,null,null,null,"Annual",{"$f":"AVERAGE(L52:L63)","v":{"$error":"#DIV/0!"}},{"$f":"MAX(M52:M63)","v":0},{"$f":"AVERAGE(N52:N63)","v":{"$error":"#DIV/0!"}},{"$f":"MAX(O52:O63)","v":0}]
[]
[null,null,null,null,null,null,null,null,null,{"$f":"+A6","v":2020},"mg/Nm3","Monthly 1/2 hourly mean","Monthly 1/2 hourly maximum","Monthly daily mean","Monthly daily maximum"]
[null,null,null,null,null,null,null,null,null,"A5","Jan"]
[null,null,null,null,null,null,null,null,null,null,"Feb"]
[null,null,null,null,null,null,null,null,null,null,"Mar"]
[null,null,null,null,null,null,null,null,null,null,"Apr"]
[null,null,null,null,null,null,null,null,null,null,"May"]
[null,null,null,null,null,null,null,null,null,null,"Jun"]
[null,null,null,null,null,null,null,null,null,null,"Jul"]
[null,null,null,null,null,null,null,null,null,null,"Aug"]
[null,null,null,null,null,null,null,null,null,null,"Sep"]
[null,null,null,null,null,null,null,null,null,null,"Oct"]
[null,null,null,null,null,null,null,null,null,null,"Nov"]
[null,null,null,null,null,null,null,null,null,null,"Dec"]
[null,null,null,null,null,null,null,null,null,null,"Annual",{"$f":"AVERAGE(L67:L78)","v":{"$error":"#DIV/0!"}},{"$f":"MAX(M67:M78)","v":0},{"$f":"AVERAGE(N67:N78)","v":{"$error":"#DIV/0!"}},{"$f":"MAX(O67:O78)","v":0}]

{"sheet":"TOC","index":17,"n_rows":79,"n_cols":17,"rows_kept":79,"cut":false,"hidden":false,"merged":[[4,1,4,3],[4,4,4,6],[4,9,4,14],[6,9,18,9],[21,9,33,9],[0,4,1,6],[3,16,7,18],[9,16,11,18],[12,16,15,18],[66,9,78,9],[36,9,48,9],[47,0,47,6],[48,0,51,6],[51,9,63,9]]}
[{"$f":"+'Cover Page'!$B$29","v":"Annual Performance Report 2020"},null,null,null,{"$f":"+'Cover Page'!$B$33","v":"South East London Combined Heat and Power (SELCHP)"}]
[]
["Monitoring of Total organic carbon emissions",null,null,"Whole Installation",null,null,"See  Notes in Cell Q3",null,null,{"$f":"+A3","v":"Monitoring of Total organic carbon emissions"},null,null,null,"Per Combustion Line",null,null,"Notes:"]
[null,null,null,null,null,null,null,null,null,null,null,null,null,null,null,null,"User to add logic to complete Whole installation, Table A5:G18. From the data in Per Combustion Line, Table J6:O79, subject to No. of lines installed"]
["mg/Nm3","1/2 Hourly Reference Periods",null,null,"Daily Reference Periods"]
[{"$f":"+'Cover Page'!C39","v":2020},"1/2 hourly TOC ELV","Monthly 1/2 hourly mean","Highest 1/2 hourly maximum","Daily TOC ELV","Monthly daily mean","Highest daily maximum",null,null,{"$f":"+A6","v":2020},"mg/Nm3","Monthly 1/2 hourly mean","Monthly 1/2 hourly maximum","Monthly daily mean","Monthly daily maximum"]
["Jan",20,{"$f":"(L7+L22)/2","v":-0.03},{"$f":"(M7+M22)/2","v":1.9650000000000001},10,{"$f":"(N7+N22)/2","v":-0.03},{"$f":"(O7+O22)/2","v":0.13},null,null,"A1","Jan",0.2,2.35,0.2,0.33]
["Feb",20,{"$f":"(L8+L23)/2","v":-0.05},3.7149999999999999,10,{"$f":"(N8+N23)/2","v":-0.05},0.19999999999999998,null,null,null,"Feb",0.17,6.17,0.17,0.48]
["Mar",20,0.22500000000000001,2.52,10,0.23500000000000001,0.56500000000000006,null,null,null,"Mar",0.08,3.95,0.08,0.67,null,"Whole Installation table A5:G18:"]
["Apr",20,0.13,1.675,10,0.13,0.54999999999999993,null,null,null,"Apr",0.09,1.02,0.09,0.41,null,"Mean: for 1/2 hourly and daily periods calculate mean of values across all operational combustion lines for the month"]
["May",20,0,0.66,10,0,0.1,null,null,null,"May",0.16,0.43,0.16,0.26]
["Jun",20,4.5000000000000012E-2,1.6199999999999999,10,4.0000000000000008E-2,0.59,null,null,null,"Jun",0.33,2.42,0.32,1.1499999999999999]
["Jul",20,0.33,3.7649999999999997,10,0.32500000000000001,0.79,null,null,null,"Jul",0.87,1.39,0.87,1.06,null,"Maximum: for 1/2 hourly and daily periods use the highest value across all operational combustion lines for the month"]
["Aug",20,-0.75,1.2450000000000001,10,-7.9999999999999988E-2,0.53,null,null,null,"Aug",-1.26,1.76,0.08,1.22]
["Sep",20,-3.5000000000000003E-2,5.835,10,-5.5E-2,0.625,null,null,null,"Sep",0.01,8.48,-0.01,0.81]
["Oct",20,-0.15500000000000003,3.0750000000000002,10,-0.16000000000000003,0.215,null,null,null,"Oct",-0.54,4.3600000000000003,-0.55000000000000004,-0.32]
["Nov",20,0.255,1.64,10,0.255,1.0050000000000001,null,null,null,"Nov",0.15,1.88,0.15,1.35]
["Dec",20,0.33999999999999997,1.6850000000000001,10,0.33999999999999997,0.87,null,null,null,"Dec",0.36,1.84,0.36,1.28]
[null,null,null,null,null,null,null,null,null,null,"Annual",{"$f":"AVERAGE(L7:L18)","v":5.1666666666666659E-2},{"$f":"MAX(M7:M18)","v":8.48},{"$f":"AVERAGE(N7:N18)","v":0.16},{"$f":"MAX(O7:O18)","v":1.35}]
[]
[null,null,null,null,null,null,null,null,null,{"$f":"+A6","v":2020},"mg/Nm3","Monthly 1/2 hourly mean","Monthly 1/2 hourly maximum","Monthly daily mean","Monthly daily maximum"]
[null,null,null,null,null,null,null,null,null,"A2","Jan",-0.26,1.58,-0.26,-7.0000000000000007E-2]
[null,null,null,null,null,null,null,null,null,null,"Feb",-0.27,1.26,-0.27,-0.08]
[null,null,null,null,null,null,null,null,null,null,"Mar",0.37,1.0900000000000001,0.39,0.46]
[null,null,null,null,null,null,null,null,null,null,"Apr",0.17,2.33,0.17,0.69]
[null,null,null,null,null,null,null,null,null,null,"May",-0.16,0.89,-0.16,-0.06]
[null,null,null,null,null,null,null,null,null,null,"Jun",-0.24,0.82,-0.24,0.03]
[null,null,null,null,null,null,null,null,null,null,"Jul",-0.21,6.14,-0.22,0.52]
[null,null,null,null,null,null,null,null,null,null,"Aug",-0.24,0.73,-0.24,-0.16]
[null,null,null,null,null,null,null,null,null,null,"Sep",-0.08,3.19,-0.1,0.44]
[null,null,null,null,null,null,null,null,null,null,"Oct",0.23,1.79,0.23,0.75]
[null,null,null,null,null,null,null,null,null,null,"Nov",0.36,1.4,0.36,0.66]
[null,null,null,null,null,null,null,null,null,null,"Dec",0.32,1.53,0.32,0.46]
[null,null,null,null,null,null,null,null,null,null,"Annual",{"$f":"AVERAGE(L22:L33)","v":-8.3333333333332948E-4},{"$f":"MAX(M22:M33)","v":6.14},{"$f":"AVERAGE(N22:N33)","v":-1.6666666666666635E-3},{"$f":"MAX(O22:O33)","v":0.75}]
[]
[null,null,null,null,null,null,null,null,null,{"$f":"+A6","v":2020},"mg/Nm3","Monthly 1/2 hourly mean","Monthly 1/2 hourly maximum","Monthly daily mean","Monthly daily maximum"]
[null,null,null,null,null,null,null,null,null,"A3","Jan"]
[null,null,null,null,null,null,null,null,null,null,"Feb"]
[null,null,null,null,null,null,null,null,null,null,"Mar"]
[null,null,null,null,null,null,null,null,null,null,"Apr"]
[null,null,null,null,null,null,null,null,null,null,"May"]
[null,null,null,null,null,null,null,null,null,null,"Jun"]
[null,null,null,null,null,null,null,null,null,null,"Jul"]
[null,null,null,null,null,null,null,null,null,null,"Aug"]
[null,null,null,null,null,null,null,null,null,null,"Sep"]
[null,null,null,null,null,null,null,null,null,null,"Oct"]
[null,null,null,null,null,null,null,null,null,null,"Nov"]
["Comments :",null,null,null,null,null,null,null,null,null,"Dec"]
[null,null,null,null,null,null,null,null,null,null,"Annual",{"$f":"AVERAGE(L37:L48)","v":{"$error":"#DIV/0!"}},{"$f":"MAX(M37:M48)","v":0},{"$f":"AVERAGE(N37:N48)","v":{"$error":"#DIV/0!"}},{"$f":"MAX(O37:O48)","v":0}]
[]
[null,null,null,null,null,null,null,null,null,{"$f":"+A6","v":2020},"mg/Nm3","Monthly 1/2 hourly mean","Monthly 1/2 hourly maximum","Monthly daily mean","Monthly daily maximum"]
[null,null,null,null,null,null,null,null,null,"A4","Jan"]
[null,null,null,null,null,null,null,null,null,null,"Feb"]
[null,null,null,null,null,null,null,null,null,null,"Mar"]
[null,null,null,null,null,null,null,null,null,null,"Apr"]
[null,null,null,null,null,null,null,null,null,null,"May"]
[null,null,null,null,null,null,null,null,null,null,"Jun"]
[null,null,null,null,null,null,null,null,null,null,"Jul"]
[null,null,null,null,null,null,null,null,null,null,"Aug"]
[null,null,null,null,null,null,null,null,null,null,"Sep"]
[null,null,null,null,null,null,null,null,null,null,"Oct"]
[null,null,null,null,null,null,null,null,null,null,"Nov"]
[null,null,null,null,null,null,null,null,null,null,"Dec"]
[null,null,null,null,null,null,null,null,null,null,"Annual",{"$f":"AVERAGE(L52:L63)","v":{"$error":"#DIV/0!"}},{"$f":"MAX(M52:M63)","v":0},{"$f":"AVERAGE(N52:N63)","v":{"$error":"#DIV/0!"}},{"$f":"MAX(O52:O63)","v":0}]
[]
[null,null,null,null,null,null,null,null,null,{"$f":"+A6","v":2020},"mg/Nm3","Monthly 1/2 hourly mean","Monthly 1/2 hourly maximum","Monthly daily mean","Monthly daily maximum"]
[null,null,null,null,null,null,null,null,null,"A5","Jan"]
[null,null,null,null,null,null,null,null,null,null,"Feb"]
[null,null,null,null,null,null,null,null,null,null,"Mar"]
[null,null,null,null,null,null,null,null,null,null,"Apr"]
[null,null,null,null,null,null,null,null,null,null,"May"]
[null,null,null,null,null,null,null,null,null,null,"Jun"]
[null,null,null,null,null,null,null,null,null,null,"Jul"]
[null,null,null,null,null,null,null,null,null,null,"Aug"]
[null,null,null,null,null,null,null,null,null,null,"Sep"]
[null,null,null,null,null,null,null,null,null,null,"Oct"]
[null,null,null,null,null,null,null,null,null,null,"Nov"]
[null,null,null,null,null,null,null,null,null,null,"Dec"]
[null,null,null,null,null,null,null,null,null,null,"Annual",{"$f":"AVERAGE(L67:L78)","v":{"$error":"#DIV/0!"}},{"$f":"MAX(M67:M78)","v":0},{"$f":"AVERAGE(N67:N78)","v":{"$error":"#DIV/0!"}},{"$f":"MAX(O67:O78)","v":0}]

{"sheet":"Particulates","index":18,"n_rows":79,"n_cols":17,"rows_kept":79,"cut":false,"hidden":false,"merged":[[4,1,4,3],[4,4,4,6],[4,9,4,14],[6,9,18,9],[21,9,33,9],[0,4,1,6],[3,16,7,18],[9,16,11,18],[12,16,15,18],[66,9,78,9],[36,9,48,9],[47,0,47,6],[48,0,51,6],[51,9,63,9]]}
[{"$f":"+'Cover Page'!$B$29","v":"Annual Performance Report 2020"},null,null,null,{"$f":"+'Cover Page'!$B$33","v":"South East London Combined Heat and Power (SELCHP)"}]
[]
["Monitoring of Particulate matter emissions",null,null,"Whole Installation",null,null,"See  Notes in Cell Q3",null,null,{"$f":"+A3","v":"Monitoring of Particulate matter emissions"},null,null,null,"Per Combustion Line",null,null,"Notes:"]
[null,null,null,null,null,null,null,null,null,null,null,null,null,null,null,null,"User to add logic to complete Whole installation, Table A5:G18. From the data in Per Combustion Line, Table J6:O79, subject to No. of lines installed"]
["mg/Nm3","1/2 Hourly Reference Periods",null,null,"Daily Reference Periods"]
[{"$f":"+'Cover Page'!C39","v":2020},"1/2 hourly PM ELV","Monthly 1/2 hourly mean","Highest 1/2 hourly maximum","Daily PM ELV","Monthly daily mean","Highest daily maximum",null,null,{"$f":"+A6","v":2020},"mg/Nm3","Monthly 1/2 hourly mean","Monthly 1/2 hourly maximum","Monthly daily mean","Monthly daily maximum"]
["Jan",30,{"$f":"(L7+L22)/2","v":0.88},{"$f":"(M7+M22)/2","v":3.29},10,{"$f":"(N7+N22)/2","v":0.88500000000000001},{"$f":"(O7+O22)/2","v":1.18},null,null,"A1","Jan",1.5,3.13,1.51,1.92]
["Feb",30,{"$f":"(L8+L23)/2","v":1.1700000000000002},4.9000000000000004,10,{"$f":"(N8+N23)/2","v":1.1700000000000002},1.5050000000000001,null,null,null,"Feb",2.1800000000000002,6.61,2.1800000000000002,2.74]
["Mar",30,0.76500000000000001,8.91,10,0.76,1.3599999999999999,null,null,null,"Mar",0.8,3.29,0.8,1.18,null,"Whole Installation table A5:G18:"]
["Apr",30,0.55999999999999994,7.6449999999999996,10,0.56499999999999995,1.1100000000000001,null,null,null,"Apr",0.7,3.45,0.7,0.9,null,"Mean: for 1/2 hourly and daily periods calculate mean of values across all operational combustion lines for the month"]
["May",30,{"$f":"(L11+L26)/2","v":0.48499999999999999},3.2849999999999997,10,0.48499999999999999,0.69,null,null,null,"May",0.73,2.5099999999999998,0.73,1.01]
["Jun",30,{"$f":"(L12+L27)/2","v":1.365},8.9849999999999994,10,1.375,2.6950000000000003,null,null,null,"Jun",2.46,13.21,2.48,4.9800000000000004]
["Jul",30,1.5550000000000002,4.6349999999999998,10,1.5550000000000002,2.0099999999999998,null,null,null,"Jul",2.91,4.79,2.91,3.67,null,"Maximum: for 1/2 hourly and daily periods use the highest value across all operational combustion lines for the month"]
["Aug",30,1.825,11.775,10,1.71,3.8,null,null,null,"Aug",3.38,16.260000000000002,3.17,7.29]
["Sep",30,1.0349999999999999,18.524999999999999,10,0.97500000000000009,4.37,null,null,null,"Sep",1.41,26.65,1.3,6.74]
["Oct",30,0.8,3.79,10,0.8,1.4850000000000001,null,null,null,"Oct",1.31,3.09,1.31,2.4900000000000002]
["Nov",30,0.67500000000000004,4.24,10,0.67500000000000004,1.895,null,null,null,"Nov",1.06,4.9400000000000004,1.06,3.25]
["Dec",30,0.76,2.9950000000000001,10,0.76,1.0549999999999999,null,null,null,"Dec",1.29,2.65,1.29,1.72]
[null,null,null,null,null,null,null,null,null,null,"Annual",{"$f":"AVERAGE(L7:L18)","v":1.6441666666666663},{"$f":"MAX(M7:M18)","v":26.65},{"$f":"AVERAGE(N7:N18)","v":1.6199999999999999},{"$f":"MAX(O7:O18)","v":7.29}]
[]
[null,null,null,null,null,null,null,null,null,{"$f":"+A6","v":2020},"mg/Nm3","Monthly 1/2 hourly mean","Monthly 1/2 hourly maximum","Monthly daily mean","Monthly daily maximum"]
[null,null,null,null,null,null,null,null,null,"A2","Jan",0.26,3.45,0.26,0.44]
[null,null,null,null,null,null,null,null,null,null,"Feb",0.16,3.19,0.16,0.27]
[null,null,null,null,null,null,null,null,null,null,"Mar",0.73,14.53,0.72,1.54]
[null,null,null,null,null,null,null,null,null,null,"Apr",0.42,11.84,0.43,1.32]
[null,null,null,null,null,null,null,null,null,null,"May",0.24,4.0599999999999996,0.24,0.37]
[null,null,null,null,null,null,null,null,null,null,"Jun",0.27,4.76,0.27,0.41]
[null,null,null,null,null,null,null,null,null,null,"Jul",0.2,4.4800000000000004,0.2,0.35]
[null,null,null,null,null,null,null,null,null,null,"Aug",0.27,7.29,0.25,0.31]
[null,null,null,null,null,null,null,null,null,null,"Sep",0.66,10.4,0.65,2]
[null,null,null,null,null,null,null,null,null,null,"Oct",0.28999999999999998,4.49,0.28999999999999998,0.48]
[null,null,null,null,null,null,null,null,null,null,"Nov",0.28999999999999998,3.54,0.28999999999999998,0.54]
[null,null,null,null,null,null,null,null,null,null,"Dec",0.23,3.34,0.23,0.39]
[null,null,null,null,null,null,null,null,null,null,"Annual",{"$f":"AVERAGE(L22:L33)","v":0.33500000000000002},{"$f":"MAX(M22:M33)","v":14.53},{"$f":"AVERAGE(N22:N33)","v":0.33250000000000002},{"$f":"MAX(O22:O33)","v":2}]
[]
[null,null,null,null,null,null,null,null,null,{"$f":"+A6","v":2020},"mg/Nm3","Monthly 1/2 hourly mean","Monthly 1/2 hourly maximum","Monthly daily mean","Monthly daily maximum"]
[null,null,null,null,null,null,null,null,null,"A3","Jan"]
[null,null,null,null,null,null,null,null,null,null,"Feb"]
[null,null,null,null,null,null,null,null,null,null,"Mar"]
[null,null,null,null,null,null,null,null,null,null,"Apr"]
[null,null,null,null,null,null,null,null,null,null,"May"]
[null,null,null,null,null,null,null,null,null,null,"Jun"]
[null,null,null,null,null,null,null,null,null,null,"Jul"]
[null,null,null,null,null,null,null,null,null,null,"Aug"]
[null,null,null,null,null,null,null,null,null,null,"Sep"]
[null,null,null,null,null,null,null,null,null,null,"Oct"]
[null,null,null,null,null,null,null,null,null,null,"Nov"]
["Comments :",null,null,null,null,null,null,null,null,null,"Dec"]
[null,null,null,null,null,null,null,null,null,null,"Annual",{"$f":"AVERAGE(L37:L48)","v":{"$error":"#DIV/0!"}},{"$f":"MAX(M37:M48)","v":0},{"$f":"AVERAGE(N37:N48)","v":{"$error":"#DIV/0!"}},{"$f":"MAX(O37:O48)","v":0}]
[]
[null,null,null,null,null,null,null,null,null,{"$f":"+A6","v":2020},"mg/Nm3","Monthly 1/2 hourly mean","Monthly 1/2 hourly maximum","Monthly daily mean","Monthly daily maximum"]
[null,null,null,null,null,null,null,null,null,"A4","Jan"]
[null,null,null,null,null,null,null,null,null,null,"Feb"]
[null,null,null,null,null,null,null,null,null,null,"Mar"]
[null,null,null,null,null,null,null,null,null,null,"Apr"]
[null,null,null,null,null,null,null,null,null,null,"May"]
[null,null,null,null,null,null,null,null,null,null,"Jun"]
[null,null,null,null,null,null,null,null,null,null,"Jul"]
[null,null,null,null,null,null,null,null,null,null,"Aug"]
[null,null,null,null,null,null,null,null,null,null,"Sep"]
[null,null,null,null,null,null,null,null,null,null,"Oct"]
[null,null,null,null,null,null,null,null,null,null,"Nov"]
[null,null,null,null,null,null,null,null,null,null,"Dec"]
[null,null,null,null,null,null,null,null,null,null,"Annual",{"$f":"AVERAGE(L52:L63)","v":{"$error":"#DIV/0!"}},{"$f":"MAX(M52:M63)","v":0},{"$f":"AVERAGE(N52:N63)","v":{"$error":"#DIV/0!"}},{"$f":"MAX(O52:O63)","v":0}]
[]
[null,null,null,null,null,null,null,null,null,{"$f":"+A6","v":2020},"mg/Nm3","Monthly 1/2 hourly mean","Monthly 1/2 hourly maximum","Monthly daily mean","Monthly daily maximum"]
[null,null,null,null,null,null,null,null,null,"A5","Jan"]
[null,null,null,null,null,null,null,null,null,null,"Feb"]
[null,null,null,null,null,null,null,null,null,null,"Mar"]
[null,null,null,null,null,null,null,null,null,null,"Apr"]
[null,null,null,null,null,null,null,null,null,null,"May"]
[null,null,null,null,null,null,null,null,null,null,"Jun"]
[null,null,null,null,null,null,null,null,null,null,"Jul"]
[null,null,null,null,null,null,null,null,null,null,"Aug"]
[null,null,null,null,null,null,null,null,null,null,"Sep"]
[null,null,null,null,null,null,null,null,null,null,"Oct"]
[null,null,null,null,null,null,null,null,null,null,"Nov"]
[null,null,null,null,null,null,null,null,null,null,"Dec"]
[null,null,null,null,null,null,null,null,null,null,"Annual",{"$f":"AVERAGE(L67:L78)","v":{"$error":"#DIV/0!"}},{"$f":"MAX(M67:M78)","v":0},{"$f":"AVERAGE(N67:N78)","v":{"$error":"#DIV/0!"}},{"$f":"MAX(O67:O78)","v":0}]

{"sheet":"CO 95% 10 min","index":19,"n_rows":79,"n_cols":19,"rows_kept":79,"cut":false,"hidden":false,"merged":[[0,4,1,7],[3,18,7,20],[9,18,11,20],[12,18,15,20],[66,10,78,10],[4,1,4,4],[4,5,4,7],[4,10,4,16],[6,10,18,10],[21,10,33,10],[36,10,48,10],[47,0,47,7],[48,0,51,7],[51,10,63,10]]}
[{"$f":"+'Cover Page'!$B$29","v":"Annual Performance Report 2020"},null,null,null,{"$f":"+'Cover Page'!$B$33","v":"South East London Combined Heat and Power (SELCHP)"}]
[]
["Monitoring of Carbon Monoxide (10-minute avg)",null,null,null,"Whole Installation",null,null,"See  Notes in Cell S3",null,{"$f":"+A3","v":"Monitoring of Carbon Monoxide (10-minute avg)"},null,null,null,null,"Per Combustion Line",null,"Notes:",null,"Notes:"]
[null,null,null,null,null,null,null,null,null,null,null,null,null,null,null,null,null,null,"User to add logic to complete Whole installation, Table A5:H18. From the data in Per Combustion Line, Table K6:Q79, subject to No. of lines installed"]
["mg/Nm3","10-minute Reference Periods",null,null,null,"Daily Reference Periods"]
[{"$f":"+'Cover Page'!C39","v":2020},"95%ile 10-min avg CO ELV","95%ile 10-min avg maximum","Monthly CO 10-min avg mean","10-min avg maximum","Daily CO ELV","Monthly daily mean","Highest daily maximum",null,null,{"$f":"+A6","v":2020},"mg/Nm3","95%ile 10-min avg maximum","Monthly CO 10-min avg mean","10-min avg maximum","Monthly daily mean","Monthly daily maximum"]
["Jan",150,{"$f":"(M7+M22)/2","v":6.5},{"$f":"(N7+N22)/2","v":2.915},467.61500000000001,50,{"$f":"(P7+P22)/2","v":2.92},{"$f":"(Q7+Q22)/2","v":6.3449999999999998},null,null,"A1","Jan",8,3.15,759.12,3.12,8.0399999999999991]
["Feb",{"$f":"+B7","v":150},{"$f":"(M8+M23)/2","v":6.5},2.46,764.56,{"$f":"+F7","v":50},{"$f":"(P8+P23)/2","v":2.4049999999999998},6.8550000000000004,null,null,null,"Feb",8,3.2,941.89,3.13,8.5]
["Mar",{"$f":"+B8","v":150},2,-0.20999999999999996,72.680000000000007,{"$f":"+F8","v":50},-0.22499999999999987,0.77500000000000013,null,null,null,"Mar",4,2.06,98.12,2.06,3.66,null,"Whole Installation table A5:H18:"]
["Apr",150,4,0.21999999999999997,129.57999999999998,50,0.21999999999999997,2.105,null,null,null,"Apr",5,1.72,90.74,1.72,3.5,null,"Mean: for 10-min and daily periods use average of all operational combustion lines."]
["May",150,4.5,1.115,208.905,50,1.115,2.8050000000000002,null,null,null,"May",5,2.0699999999999998,188.6,2.06,3.37]
["Jun",150,7.5,1.65,79.155000000000001,50,1.625,3.915,null,null,null,"Jun",9,2.79,124.92,2.74,5.68]
["Jul",150,5,0.92,290.92,50,0.93,3.62,null,null,null,"Jul",6,1.54,58.01,1.54,3.57,null,"Maximum: for 10-min and daily periods use the highest of all operational combustion lines in any month."]
["Aug",150,3,2.59,789.44999999999993,50,0.58000000000000007,2.915,null,null,null,"Aug",2,5.13,1439.82,1.1100000000000001,4.41]
["Sep",150,8.5,1.25,547.26,50,1.2050000000000001,4.6449999999999996,null,null,null,"Sep",7,0.73,646.88,0.73,4.2300000000000004]
["Oct",150,9,3.605,270.76499999999999,50,3.6150000000000002,6.09,null,null,null,"Oct",8,3.81,170.51,3.83,6.24]
["Nov",150,9.5,2.85,499.33499999999998,50,2.8449999999999998,8.7899999999999991,null,null,null,"Nov",8,2.39,93.8,2.38,4.9800000000000004]
["Dec",150,9,2.8150000000000004,378.34000000000003,50,2.8150000000000004,6.98,null,null,null,"Dec",11,2.16,266.64,2.16,5.39]
[null,null,null,null,null,null,null,null,null,null,null,"Annual",{"$f":"AVERAGE(M7:M18)","v":6.75},{"$f":"AVERAGE(N7:N18)","v":2.5625},{"$f":"MAX(O7:O18)","v":1439.82},{"$f":"AVERAGE(P7:P18)","v":2.2149999999999999},{"$f":"MAX(Q7:Q18)","v":8.5}]
[]
[null,null,null,null,null,null,null,null,null,null,{"$f":"+A6","v":2020},"mg/Nm3","95%ile 10-min avg maximum","Monthly CO 10-min avg mean","10-min avg maximum","Monthly daily mean","Monthly daily maximum"]
[null,null,null,null,null,null,null,null,null,null,"A2","Jan",5,2.68,176.11,2.72,4.6500000000000004]
[null,null,null,null,null,null,null,null,null,null,null,"Feb",5,1.72,587.23,1.68,5.21]
[null,null,null,null,null,null,null,null,null,null,null,"Mar",0,-2.48,47.24,-2.5099999999999998,-2.11]
[null,null,null,null,null,null,null,null,null,null,null,"Apr",3,-1.28,168.42,-1.28,0.71]
[null,null,null,null,null,null,null,null,null,null,null,"May",4,0.16,229.21,0.17,2.2400000000000002]
[null,null,null,null,null,null,null,null,null,null,null,"Jun",6,0.51,33.39,0.51,2.15]
[null,null,null,null,null,null,null,null,null,null,null,"Jul",4,0.3,523.83000000000004,0.32,3.67]
[null,null,null,null,null,null,null,null,null,null,null,"Aug",4,0.05,139.08000000000001,0.05,1.42]
[null,null,null,null,null,null,null,null,null,null,null,"Sep",10,1.77,447.64,1.68,5.0599999999999996]
[null,null,null,null,null,null,null,null,null,null,null,"Oct",10,3.4,371.02,3.4,5.94]
[null,null,null,null,null,null,null,null,null,null,null,"Nov",11,3.31,904.87,3.31,12.6]
[null,null,null,null,null,null,null,null,null,null,null,"Dec",7,3.47,490.04,3.47,8.57]
[null,null,null,null,null,null,null,null,null,null,null,"Annual",{"$f":"AVERAGE(M22:M33)","v":5.75},{"$f":"AVERAGE(N22:N33)","v":1.1341666666666668},{"$f":"MAX(O22:O33)","v":904.87},{"$f":"AVERAGE(P22:P33)","v":1.1266666666666667},{"$f":"MAX(Q22:Q33)","v":12.6}]
[]
[null,null,null,null,null,null,null,null,null,null,{"$f":"+A6","v":2020},"mg/Nm3","95%ile 10-min avg maximum","Monthly CO 10-min avg mean","10-min avg maximum","Monthly daily mean","Monthly daily maximum"]
[null,null,null,null,null,null,null,null,null,null,"A3","Jan"]
[null,null,null,null,null,null,null,null,null,null,null,"Feb"]
[null,null,null,null,null,null,null,null,null,null,null,"Mar"]
[null,null,null,null,null,null,null,null,null,null,null,"Apr"]
[null,null,null,null,null,null,null,null,null,null,null,"May"]
[null,null,null,null,null,null,null,null,null,null,null,"Jun"]
[null,null,null,null,null,null,null,null,null,null,null,"Jul"]
[null,null,null,null,null,null,null,null,null,null,null,"Aug"]
[null,null,null,null,null,null,null,null,null,null,null,"Sep"]
[null,null,null,null,null,null,null,null,null,null,null,"Oct"]
[null,null,null,null,null,null,null,null,null,null,null,"Nov"]
["Comments :",null,null,null,null,null,null,null,null,null,null,"Dec"]
["Environment Agency explanatory note: The 10-minute average ELV is based on the “95th percentile”. In this case this means that 95% of the 10 minute averages in the relevant 24-hour period (i.e. 137) must be below 150 mg/Nm3, and 5% (i.e. 7) are allowed to be any value above 150 mg/Nm3. Whilst we expect operators to minimise CO emissions at all times, it is perfectly acceptable for the value of the maximum 10-minute average to be above 150 mg/Nm3, provided the 95th percentile ELV has been met for that period. ",null,null,null,null,null,null,null,null,null,null,"Annual",{"$f":"AVERAGE(M37:M48)","v":{"$error":"#DIV/0!"}},null,{"$f":"MAX(O37:O48)","v":0},{"$f":"AVERAGE(P37:P48)","v":{"$error":"#DIV/0!"}},{"$f":"MAX(Q37:Q48)","v":0}]
[]
[null,null,null,null,null,null,null,null,null,null,{"$f":"+A6","v":2020},"mg/Nm3","95%ile 10-min avg maximum","Monthly CO 10-min avg mean","10-min avg maximum","Monthly daily mean","Monthly daily maximum"]
[null,null,null,null,null,null,null,null,null,null,"A4","Jan"]
[null,null,null,null,null,null,null,null,null,null,null,"Feb"]
[null,null,null,null,null,null,null,null,null,null,null,"Mar"]
[null,null,null,null,null,null,null,null,null,null,null,"Apr"]
[null,null,null,null,null,null,null,null,null,null,null,"May"]
[null,null,null,null,null,null,null,null,null,null,null,"Jun"]
[null,null,null,null,null,null,null,null,null,null,null,"Jul"]
[null,null,null,null,null,null,null,null,null,null,null,"Aug"]
[null,null,null,null,null,null,null,null,null,null,null,"Sep"]
[null,null,null,null,null,null,null,null,null,null,null,"Oct"]
[null,null,null,null,null,null,null,null,null,null,null,"Nov"]
[null,null,null,null,null,null,null,null,null,null,null,"Dec"]
[null,null,null,null,null,null,null,null,null,null,null,"Annual",{"$f":"AVERAGE(M52:M63)","v":{"$error":"#DIV/0!"}},null,{"$f":"MAX(O52:O63)","v":0},{"$f":"AVERAGE(P52:P63)","v":{"$error":"#DIV/0!"}},{"$f":"MAX(Q52:Q63)","v":0}]
[]
[null,null,null,null,null,null,null,null,null,null,{"$f":"+A6","v":2020},"mg/Nm3","95%ile 10-min avg maximum","Monthly CO 10-min avg mean","10-min avg maximum","Monthly daily mean","Monthly daily maximum"]
[null,null,null,null,null,null,null,null,null,null,"A5","Jan"]
[null,null,null,null,null,null,null,null,null,null,null,"Feb"]
[null,null,null,null,null,null,null,null,null,null,null,"Mar"]
[null,null,null,null,null,null,null,null,null,null,null,"Apr"]
[null,null,null,null,null,null,null,null,null,null,null,"May"]
[null,null,null,null,null,null,null,null,null,null,null,"Jun"]
[null,null,null,null,null,null,null,null,null,null,null,"Jul"]
[null,null,null,null,null,null,null,null,null,null,null,"Aug"]
[null,null,null,null,null,null,null,null,null,null,null,"Sep"]
[null,null,null,null,null,null,null,null,null,null,null,"Oct"]
[null,null,null,null,null,null,null,null,null,null,null,"Nov"]
[null,null,null,null,null,null,null,null,null,null,null,"Dec"]
[null,null,null,null,null,null,null,null,null,null,null,"Annual",{"$f":"AVERAGE(M67:M78)","v":{"$error":"#DIV/0!"}},null,{"$f":"MAX(O67:O78)","v":0},{"$f":"AVERAGE(P67:P78)","v":{"$error":"#DIV/0!"}},{"$f":"MAX(Q67:Q78)","v":0}]

{"sheet":"NH3","index":20,"n_rows":79,"n_cols":17,"rows_kept":79,"cut":false,"hidden":false,"merged":[[4,1,4,3],[4,4,4,6],[4,9,4,14],[6,9,18,9],[21,9,33,9],[0,4,1,6],[3,16,7,18],[9,16,11,18],[12,16,15,18],[66,9,78,9],[36,9,48,9],[47,0,47,6],[48,0,51,6],[51,9,63,9]]}
[{"$f":"+'Cover Page'!$B$29","v":"Annual Performance Report 2020"},null,null,null,{"$f":"+'Cover Page'!$B$33","v":"South East London Combined Heat and Power (SELCHP)"}]
[]
["Monitoring of Ammonia emissions ",null,null,"Whole Installation",null,null,"See  Notes in Cell Q3",null,null,{"$f":"+A3","v":"Monitoring of Ammonia emissions "},null,null,null,"Per Combustion Line",null,null,"Notes:"]
[null,null,null,null,null,null,null,null,null,null,null,null,null,null,null,null,"User to add logic to complete Whole installation, Table A5:G18. From the data in Per Combustion Line, Table J6:O79, subject to No. of lines installed"]
["mg/Nm3","1/2 Hourly Reference Periods",null,null,"Daily Reference Periods"]
[{"$f":"+'Cover Page'!C39","v":2020},"1/2 hourly NH3 ELV","Monthly 1/2 hourly mean","Highest 1/2 hourly maximum","Daily NH3 ELV","Monthly daily mean","Highest daily maximum",null,null,{"$f":"+A6","v":2020},"mg/Nm3","Monthly 1/2 hourly mean","Monthly 1/2 hourly maximum","Monthly daily mean","Monthly daily maximum"]
["Jan",0,{"$f":"(L7+L22)/2","v":3.145},{"$f":"(M7+M22)/2","v":12.905000000000001},10,{"$f":"(N7+N22)/2","v":3.2},{"$f":"(O7+O22)/2","v":4.9000000000000004},null,null,"A1","Jan",2.81,14.83,2.84,4.5999999999999996]
["Feb",{"$f":"+B7","v":0},{"$f":"(L8+L23)/2","v":3.35},20.440000000000001,{"$f":"+E7","v":10},{"$f":"(N8+N23)/2","v":3.33},5.6400000000000006,null,null,null,"Feb",1.84,14.74,1.82,3.05]
["Mar",{"$f":"+B8","v":0},2.6150000000000002,16.419999999999998,{"$f":"+E8","v":10},2.5949999999999998,6.08,null,null,null,"Mar",2.0099999999999998,13.26,2.0099999999999998,6,null,"Whole Installation table A5:G18:"]
["Apr",0,2.11,12.625,10,2.11,4.3550000000000004,null,null,null,"Apr",1.89,13.7,1.89,3.47,null,"Mean: for 1/2 hourly and daily periods calculate mean of values across all operational combustion lines for the month"]
["May",0,2.0049999999999999,11.399999999999999,10,2.0049999999999999,3.105,null,null,null,"May",1.6,10.36,1.6,2.69]
["Jun",0,1.66,12.33,10,1.6549999999999998,2.9699999999999998,null,null,null,"Jun",1.44,15.43,1.43,3.05]
["Jul",0,1.44,11.605,10,1.4350000000000001,3.25,null,null,null,"Jul",1.46,9.2899999999999991,1.47,2.84,null,"Maximum: for 1/2 hourly and daily periods use the highest value across all operational combustion lines for the month"]
["Aug",0,1.49,9.8849999999999998,10,1.24,3.84,null,null,null,"Aug",1.98,12.21,1.47,5.55]
["Sep",0,2.0750000000000002,18.625,10,1.875,5.0950000000000006,null,null,null,"Sep",2.35,15.2,2.13,5.04]
["Oct",0,1.29,7.0200000000000005,10,1.2849999999999999,2.36,null,null,null,"Oct",1.2,9.14,1.19,2.34]
["Nov",0,0.96,9.56,10,0.95499999999999996,2.2649999999999997,null,null,null,"Nov",0.75,14.05,0.74,2.3199999999999998]
["Dec",0,0.875,9.6750000000000007,10,0.875,3.4450000000000003,null,null,null,"Dec",0.46,7.6,0.46,2.39]
[null,null,null,null,null,null,null,null,null,null,"Annual",{"$f":"AVERAGE(L7:L18)","v":1.6491666666666669},{"$f":"MAX(M7:M18)","v":15.43},{"$f":"AVERAGE(N7:N18)","v":1.5875000000000001},{"$f":"MAX(O7:O18)","v":6}]
[]
[null,null,null,null,null,null,null,null,null,{"$f":"+A6","v":2020},"mg/Nm3","Monthly 1/2 hourly mean","Monthly 1/2 hourly maximum","Monthly daily mean","Monthly daily maximum"]
[null,null,null,null,null,null,null,null,null,"A2","Jan",3.48,10.98,3.56,5.2]
[null,null,null,null,null,null,null,null,null,null,"Feb",4.8600000000000003,26.14,4.84,8.23]
[null,null,null,null,null,null,null,null,null,null,"Mar",3.22,19.579999999999998,3.18,6.16]
[null,null,null,null,null,null,null,null,null,null,"Apr",2.33,11.55,2.33,5.24]
[null,null,null,null,null,null,null,null,null,null,"May",2.41,12.44,2.41,3.52]
[null,null,null,null,null,null,null,null,null,null,"Jun",1.88,9.23,1.88,2.89]
[null,null,null,null,null,null,null,null,null,null,"Jul",1.42,13.92,1.4,3.66]
[null,null,null,null,null,null,null,null,null,null,"Aug",1,7.56,1.01,2.13]
[null,null,null,null,null,null,null,null,null,null,"Sep",1.8,22.05,1.62,5.15]
[null,null,null,null,null,null,null,null,null,null,"Oct",1.38,4.9000000000000004,1.38,2.38]
[null,null,null,null,null,null,null,null,null,null,"Nov",1.17,5.07,1.17,2.21]
[null,null,null,null,null,null,null,null,null,null,"Dec",1.29,11.75,1.29,4.5]
[null,null,null,null,null,null,null,null,null,null,"Annual",{"$f":"AVERAGE(L22:L33)","v":2.186666666666667},{"$f":"MAX(M22:M33)","v":26.14},{"$f":"AVERAGE(N22:N33)","v":2.1724999999999999},{"$f":"MAX(O22:O33)","v":8.23}]
[]
[null,null,null,null,null,null,null,null,null,{"$f":"+A6","v":2020},"mg/Nm3","Monthly 1/2 hourly mean","Monthly 1/2 hourly maximum","Monthly daily mean","Monthly daily maximum"]
[null,null,null,null,null,null,null,null,null,"A3","Jan"]
[null,null,null,null,null,null,null,null,null,null,"Feb"]
[null,null,null,null,null,null,null,null,null,null,"Mar"]
[null,null,null,null,null,null,null,null,null,null,"Apr"]
[null,null,null,null,null,null,null,null,null,null,"May"]
[null,null,null,null,null,null,null,null,null,null,"Jun"]
[null,null,null,null,null,null,null,null,null,null,"Jul"]
[null,null,null,null,null,null,null,null,null,null,"Aug"]
[null,null,null,null,null,null,null,null,null,null,"Sep"]
[null,null,null,null,null,null,null,null,null,null,"Oct"]
[null,null,null,null,null,null,null,null,null,null,"Nov"]
["Comments :",null,null,null,null,null,null,null,null,null,"Dec"]
["An indicated ELV value of zero in the table above means that no ammonia limit is set in the permit.  ",null,null,null,null,null,null,null,null,null,"Annual",{"$f":"AVERAGE(L37:L48)","v":{"$error":"#DIV/0!"}},{"$f":"MAX(M37:M48)","v":0},{"$f":"AVERAGE(N37:N48)","v":{"$error":"#DIV/0!"}},{"$f":"MAX(O37:O48)","v":0}]
[]
[null,null,null,null,null,null,null,null,null,{"$f":"+A6","v":2020},"mg/Nm3","Monthly 1/2 hourly mean","Monthly 1/2 hourly maximum","Monthly daily mean","Monthly daily maximum"]
[null,null,null,null,null,null,null,null,null,"A4","Jan"]
[null,null,null,null,null,null,null,null,null,null,"Feb"]
[null,null,null,null,null,null,null,null,null,null,"Mar"]
[null,null,null,null,null,null,null,null,null,null,"Apr"]
[null,null,null,null,null,null,null,null,null,null,"May"]
[null,null,null,null,null,null,null,null,null,null,"Jun"]
[null,null,null,null,null,null,null,null,null,null,"Jul"]
[null,null,null,null,null,null,null,null,null,null,"Aug"]
[null,null,null,null,null,null,null,null,null,null,"Sep"]
[null,null,null,null,null,null,null,null,null,null,"Oct"]
[null,null,null,null,null,null,null,null,null,null,"Nov"]
[null,null,null,null,null,null,null,null,null,null,"Dec"]
[null,null,null,null,null,null,null,null,null,null,"Annual",{"$f":"AVERAGE(L52:L63)","v":{"$error":"#DIV/0!"}},{"$f":"MAX(M52:M63)","v":0},{"$f":"AVERAGE(N52:N63)","v":{"$error":"#DIV/0!"}},{"$f":"MAX(O52:O63)","v":0}]
[]
[null,null,null,null,null,null,null,null,null,{"$f":"+A6","v":2020},"mg/Nm3","Monthly 1/2 hourly mean","Monthly 1/2 hourly maximum","Monthly daily mean","Monthly daily maximum"]
[null,null,null,null,null,null,null,null,null,"A5","Jan"]
[null,null,null,null,null,null,null,null,null,null,"Feb"]
[null,null,null,null,null,null,null,null,null,null,"Mar"]
[null,null,null,null,null,null,null,null,null,null,"Apr"]
[null,null,null,null,null,null,null,null,null,null,"May"]
[null,null,null,null,null,null,null,null,null,null,"Jun"]
[null,null,null,null,null,null,null,null,null,null,"Jul"]
[null,null,null,null,null,null,null,null,null,null,"Aug"]
[null,null,null,null,null,null,null,null,null,null,"Sep"]
[null,null,null,null,null,null,null,null,null,null,"Oct"]
[null,null,null,null,null,null,null,null,null,null,"Nov"]
[null,null,null,null,null,null,null,null,null,null,"Dec"]
[null,null,null,null,null,null,null,null,null,null,"Annual",{"$f":"AVERAGE(L67:L78)","v":{"$error":"#DIV/0!"}},{"$f":"MAX(M67:M78)","v":0},{"$f":"AVERAGE(N67:N78)","v":{"$error":"#DIV/0!"}},{"$f":"MAX(O67:O78)","v":0}]